{"text_format":"1","workbook":"xlsx","n_sheets":15,"sheets":["Pagina iniziale","Articolo 19","Informazioni generali","Coltiv","Allev","Trasf","Commerc","Extra-Agricolo","Piano Investimenti","Particolari delle azioni","Riepilogo","Elenchi","Tabella_CREA","Codici ed effetti","Categoria investimenti"],"not_rendered":{"charts":0,"images":3,"macros":1,"external_links":0,"defined_names":20,"comments":0,"pivot_tables":0},"unopened":[],"bounds":{"document_bytes":16777216,"sheet_cells":100000,"rows_first":2000,"rows_last":500,"rows_between":2000,"halvings":0,"cell_chars":16384,"cell_head_chars":4096},"cells_cut":0,"cells_raw":0,"read":"whole","date_system":"1900"}

{"sheet":"Pagina iniziale","index":0,"n_rows":12,"n_cols":1,"rows_kept":12,"cut":false,"hidden":false,"merged":[[4,0,4,9],[6,0,6,9],[3,0,3,9]]}
[]
[]
[]
["REGIONE ABRUZZO"]
["Dipartimento Agricoltura Programma di Sviluppo Rurale 2014-2022 Reg. (UE) 1305/2013"]
[]
["M06 – SVILUPPO DELLE AZIENDE AGRICOLE E DELLE IMPRESE ARTT. 17 E 19 REG. (UE) 1305/2013     Sottomisura 6.1 – “Aiuti all’avviamento di attività imprenditoriali per i giovani agricoltori”"]
[]
["Su Windows 11 è necessario abilitare le macro seguendo la procedura seguente:"]
["1- Click destro sul file"]
["2- Seleziono \"Proprietà\""]
["3- Nella voce \"Sicurezza\" in basso, selezionare la casella \"Sblocca\""]

{"sheet":"Articolo 19","index":1,"n_rows":7,"n_cols":1,"rows_kept":7,"cut":false,"hidden":false,"merged":[]}
["Allegato 1 "]
[]
["REQUISITI DI AMMISSIBILITÀ DELL’INVESTIMENTO"]
["IL PIANO DI SVILUPPO AZIENDALE"]
[]
["Il Piano di Sviluppo Aziendale deve essere redatto – a pena di inammissibilità della domanda – secondo le prescrizioni di cui all’articolo 19, paragrafo 4, del Regolamento UE n. 1305/2013 e, per l’effetto, deve rappresentare i seguenti contenuti:"]
["1.          la situazione di partenza dell’azienda agricola\n2.       le tappe essenziali e gli obiettivi per lo sviluppo delle attività della nuova azienda;\n3.       i particolari delle azioni, incluse quelle inerenti alla sostenibilità ambientale e all’efficienza delle risorse, occorrenti per lo sviluppo delle attività dell’azienda agricola quali investimenti, formazione, consulenza o qualsiasi altra attività."]

{"sheet":"Informazioni generali","index":2,"n_rows":104,"n_cols":2,"rows_kept":104,"cut":false,"hidden":false,"merged":[[90,0,90,1],[101,0,101,1],[20,0,20,1],[0,0,0,1],[57,0,57,1],[87,0,88,0],[60,0,60,1],[65,0,65,1],[77,0,77,1],[82,0,82,1]]}
["1 - Anagrafica dell’azienda in cui avviene l'insediamento"]
["Ragione sociale o Denominazione sociale"]
["Costituita come"]
["Codice Fiscale/Partita Iva"]
["CUAA"]
["Sede legale"]
["Codice ATECO"]
["Oggetto sociale "]
["Indicazione dell’attività prevalente "]
["Sede del centro aziendale principale (sede operativa)"]
["Localizzazione fabbricato aziendale e almeno il 51% della SAU aziendale presenti in area"]
["PEC"]
["Email PEO"]
["Telefono"]
["Rappresentante legale"]
["Nato a"]
["Nato il"]
["Codice fiscale del rappresentante legale"]
["Residente in"]
[]
["2 - Inserire per ciascun giovane agricoltore insediato le seguenti informazioni"]
["nominativo del giovane agricoltore (1)",{"$f":"IF(B15<>\"\",B15,\"\")","v":""}]
["luogo e data di nascita",{"$f":"IF(AND(B16<>\"\",B17<>\"\"), CONCATENATE(B16, \", \", TEXT(B17, \"GG/MM/AAAA\")), \"\")","v":""}]
["codice fiscale",{"$f":"IF(B18<>\"\",B18,\"\")","v":""}]
["Titolo di Studio giovane agricoltore"]
["Istituto di conseguimento titolo di studio"]
["Data di conseguimento titolo di studio"]
["Esperienza formativa/lavorativa del giovane agricoltore, se acquisita"]
["nominativo del giovane agricoltore (2)"]
["luogo e data di nascita"]
["codice fiscale"]
["Titolo di Studio giovane agricoltore"]
["Istituto di conseguimento titolo di studio"]
["Data di conseguimento titolo di studio"]
["Esperienza formativa/lavorativa del giovane agricoltore, se acquisita"]
["nominativo del giovane agricoltore (3)"]
["luogo e data di nascita"]
["codice fiscale"]
["Titolo di Studio giovane agricoltore"]
["Istituto di conseguimento titolo di studio"]
["Data di conseguimento titolo di studio"]
["Esperienza formativa/lavorativa del giovane agricoltore, se acquisita"]
["nominativo del giovane agricoltore (4)"]
["luogo e data di nascita"]
["codice fiscale"]
["Titolo di Studio giovane agricoltore"]
["Istituto di conseguimento titolo di studio"]
["Data di conseguimento titolo di studio"]
["Esperienza formativa/lavorativa del giovane agricoltore, se acquisita"]
["nominativo del giovane agricoltore (5)"]
["luogo e data di nascita"]
["codice fiscale"]
["Titolo di Studio giovane agricoltore"]
["Istituto di conseguimento titolo di studio"]
["Data di conseguimento titolo di studio"]
["Esperienza formativa/lavorativa del giovane agricoltore, se acquisita"]
[]
["3 - Data del primo insediamento"]
["Data del primo insediamento (giorno/mese/anno)"]
[]
["4 - Attuazione PSA"]
["Situazione Iniziale: Indicare la data di INIZIO operazione  (giorno/mese/anno) -corrispondente alla data di presentazione della domanda","00/00/00"]
["Situazione Intermedia: Indicare la data di metà operazione (giorno/mese/anno)","00/00/00"]
["Situazione Finale: Indicare la data di fine operazione (giorno/mese/anno)\nMassimo 36 mesi dalla data di inizio operazione","00/00/00"]
[]
["5 - Modalità di insediamento"]
["Tipologia di azienda in cui avviene l'insediamento"]
["Forma giuridica dell’azienda in cui avviene l'insediamento"]
["Insediamento in azienda già esistente / insediamento in nuova azienda"]
["Numero di giovani agricoltori insediati"]
["Tipo di insediamento"]
["Modalità di controllo effettivo del giovane agricoltore n. 1 in relazione alla forma giuridica dell’azienda"]
["Modalità di controllo effettivo del giovane agricoltore n. 2 in relazione alla forma giuridica dell’azienda"]
["Modalità di controllo effettivo del giovane agricoltore n. 3 in relazione alla forma giuridica dell’azienda"]
["Modalità di controllo effettivo del giovane agricoltore n. 4 in relazione alla forma giuridica dell’azienda"]
["Modalità di controllo effettivo del giovane agricoltore n. 5 in relazione alla forma giuridica dell’azienda"]
[]
["6 - Struttura organizzativa al mese antecedente l'inizio del PSA"]
["Numero soci"]
["Numero collaboratori familiari"]
["Numero collaboratori extra-familiari"]
[]
["7 - Attività produttiva svolta (specificare tipologia di coltivazione, allevamento, prodotto/servizio trasformato, prodotto servizio venduto, tipologia di attività)"]
["Coltivazione"]
["Allevamento"]
["Trasformazione"]
["Commercializzazione"]
["Attività extra-agricola/e"]
[]
[]
["8 - Adesione a un Sistema di Certificazione"]
["Certificazione"]
["Certificazione oggetto dell'investimento del PSA"]
["Tipologia, barrare opzione adottata"]
[]
[]
[]
[]
[]
[]
[]
["9 - Adesione a Organismi associativi (SI/NO)"]
["Adesione"]
["Se SI elencare il nome/i nomi degli organismi associativi"]

{"sheet":"Coltiv","index":3,"n_rows":21,"n_cols":34,"rows_kept":21,"cut":false,"hidden":false,"merged":[[17,1,20,1],[1,0,1,13],[2,0,2,13],[9,20,12,20],[13,1,16,1],[9,1,12,1],[3,9,3,11],[3,6,3,8],[3,12,3,14],[3,15,3,16]]}
["Attività di Coltivazione"]
["* il valore della produzione è equiparabile alla PLT dei processi produttivi vegetali ed animali, al netto degli aiuti pubblici.Il valore medio ponderato della produzione lorda totale corrisponde alla Produzione Standard."]
["Costi medi variabili Attività Produttive: sono ricompresi nei costi medi variabili le seguenti voci di spesa: costi delle materie prime (tra cui, a titolo esemplificativo, costi per acquisto mangimi e foraggio, concimi, fertilizzanti, produzioni reimpiegate) ; noleggi, manutenzioni; ammortamenti e accantonamenti; salari e stipendi e oneri sociali; altri costi di produzione (utenze varie, spese amministrative, consulenze agronomiche, spese veterinarie, affitti, assicurazioni, costo carburante, ecc.). Per tali costi sono state considerate una soglia minima e massima sia per l'attività di coltivazione 40%-65% della PS, sia per l'attività di allevamento 50%-75%."]
[null,null,null,null,null,null,"f) Trasformazione",null,null,"g) Commercializzazione",null,null,"h) Attività extra-agricola",null,null,"i) attività amministrativa / gestionale dell’azienda"]
["Tappa","a) Coltura","b) Ha,aa","c) Giornate Uomo","d) Costi medi variabili","e) Valore della produzione*","f1) Trasformazione","f2) Valore della produzione","f3) Giornate","g1) Commercializzazione","g2) Valore della produzione","g3) Giornate","h1) Attività extra-agricola","h2) Valore della produzione","h3) Giornate","i1) Attività amministrativa / gestionale dell’azienda","i2) Giornate"]
[{"$f":"tappa0","v":"Ex-ante"},null,{"$f":"SUMIFS(C$10:C$1032, $A10:$A1032, $A6)","v":0},{"$f":"SUMIFS(D$10:D$1032, $A10:$A1032, $A6)","v":0},{"$f":"SUMIFS(E$10:E$1032, $A10:$A1032, $A6)","v":0},{"$f":"SUMIFS(F$10:F$1032, $A10:$A1032, $A6)","v":0},null,{"$f":"SUMIFS(H$10:H$1032, $A10:$A1032, $A6)","v":0},{"$f":"SUMIFS(I$10:I$1032, $A10:$A1032, $A6)","v":0},null,{"$f":"SUMIFS(K$10:K$1032, $A10:$A1032, $A6)","v":0},{"$f":"SUMIFS(L$10:L$1032, $A10:$A1032, $A6)","v":0},null,{"$f":"SUMIFS(N$10:N$1032, $A10:$A1032, $A6)","v":0},{"$f":"SUMIFS(O$10:O$1032, $A10:$A1032, $A6)","v":0},null,{"$f":"SUMIFS(Q$10:Q$1032, $A10:$A1032, $A6)","v":0}]
[{"$f":"tappa1","v":"00/00/00"},null,{"$f":"SUMIFS(C$10:C$1032, $A10:$A1032, $A7)","v":0},{"$f":"SUMIFS(D$10:D$1032, $A10:$A1032, $A7)","v":0},{"$f":"SUMIFS(E$10:E$1032, $A10:$A1032, $A7)","v":0},{"$f":"SUMIFS(F$10:F$1032, $A10:$A1032, $A7)","v":0},null,{"$f":"SUMIFS(H$10:H$1032, $A10:$A1032, $A7)","v":0},{"$f":"SUMIFS(I$10:I$1032, $A10:$A1032, $A7)","v":0},null,{"$f":"SUMIFS(K$10:K$1032, $A10:$A1032, $A7)","v":0},{"$f":"SUMIFS(L$10:L$1032, $A10:$A1032, $A7)","v":0},null,{"$f":"SUMIFS(N$10:N$1032, $A10:$A1032, $A7)","v":0},{"$f":"SUMIFS(O$10:O$1032, $A10:$A1032, $A7)","v":0},null,{"$f":"SUMIFS(Q$10:Q$1032, $A10:$A1032, $A7)","v":0}]
[{"$f":"tappa2","v":"00/00/00"},null,{"$f":"SUMIFS(C$10:C$1032, $A10:$A1032, $A8)","v":0},{"$f":"SUMIFS(D$10:D$1032, $A10:$A1032, $A8)","v":0},{"$f":"SUMIFS(E$10:E$1032, $A10:$A1032, $A8)","v":0},{"$f":"SUMIFS(F$10:F$1032, $A10:$A1032, $A8)","v":0},null,{"$f":"SUMIFS(H$10:H$1032, $A10:$A1032, $A8)","v":0},{"$f":"SUMIFS(I$10:I$1032, $A10:$A1032, $A8)","v":0},null,{"$f":"SUMIFS(K$10:K$1032, $A10:$A1032, $A8)","v":0},{"$f":"SUMIFS(L$10:L$1032, $A10:$A1032, $A8)","v":0},null,{"$f":"SUMIFS(N$10:N$1032, $A10:$A1032, $A8)","v":0},{"$f":"SUMIFS(O$10:O$1032, $A10:$A1032, $A8)","v":0},null,{"$f":"SUMIFS(Q$10:Q$1032, $A10:$A1032, $A8)","v":0}]
[{"$f":"tappa3","v":"00/00/00"},null,{"$f":"SUMIFS(C$10:C$1032, $A10:$A1032, $A9)","v":0},{"$f":"SUMIFS(D$10:D$1032, $A10:$A1032, $A9)","v":0},{"$f":"SUMIFS(E$10:E$1032, $A10:$A1032, $A9)","v":0},{"$f":"SUMIFS(F$10:F$1032, $A10:$A1032, $A9)","v":0},null,{"$f":"SUMIFS(H$10:H$1032, $A10:$A1032, $A9)","v":0},{"$f":"SUMIFS(I$10:I$1032, $A10:$A1032, $A9)","v":0},null,{"$f":"SUMIFS(K$10:K$1032, $A10:$A1032, $A9)","v":0},{"$f":"SUMIFS(L$10:L$1032, $A10:$A1032, $A9)","v":0},null,{"$f":"SUMIFS(N$10:N$1032, $A10:$A1032, $A9)","v":0},{"$f":"SUMIFS(O$10:O$1032, $A10:$A1032, $A9)","v":0},null,{"$f":"SUMIFS(Q$10:Q$1032, $A10:$A1032, $A9)","v":0}]
[{"$f":"tappa0","v":"Ex-ante"},null,null,{"$f":"IFERROR(VLOOKUP($B10, Tabella_CREA!$F$2:$I$65, 4, FALSE) * C10,0)","v":0},{"$f":"F10*65%","v":0},{"$f":"IFERROR(VLOOKUP($B10, Tabella_CREA!$F$2:$G$65, 2, FALSE) * C10, 0)","v":0},null,{"$f":"IF($G10=\"SI\",$F10*10%,0)","v":0},{"$f":"IF($G10=\"SI\",$D10*10%,0)","v":0},null,{"$f":"IF($J10=\"SI\",$F10*10%,0)","v":0},{"$f":"IF($J10=\"SI\",$D10*10%,0)","v":0},null,{"$f":"IF($M10<>\"\",IFERROR($F10*VLOOKUP($M10,Elenchi!$A$1:$B$10,2,FALSE),\"\"),0)","v":0},{"$f":"IF($M10<>\"\",IFERROR($D10*VLOOKUP($M10,Elenchi!$A$1:$B$10,2,FALSE),\"\"),0)","v":0},null,null,null,null,{"$f":"tappa0","v":"Ex-ante"},null,null,{"$f":"IFERROR(VLOOKUP($B10, Tabella_CREA!$F$2:$I$65, 4, FALSE) * V10,0)","v":0},{"$f":"Y10*65%","v":0},{"$f":"IFERROR(VLOOKUP($B10, Tabella_CREA!$F$2:$G$65, 2, FALSE) * V10, 0)","v":0},null,{"$f":"IF($G10=\"SI\",$F10*10%,0)","v":0},{"$f":"IF($G10=\"SI\",$D10*10%,0)","v":0},null,{"$f":"IF($J10=\"SI\",$F10*10%,0)","v":0},{"$f":"IF($J10=\"SI\",$D10*10%,0)","v":0},null,{"$f":"IF($M10<>\"\",IFERROR($F10*VLOOKUP($M10,Elenchi!$A$1:$B$10,2,FALSE),\"\"),0)","v":0},{"$f":"IF($M10<>\"\",IFERROR($D10*VLOOKUP($M10,Elenchi!$A$1:$B$10,2,FALSE),\"\"),0)","v":0}]
[{"$f":"tappa1","v":"00/00/00"},null,null,{"$f":"IFERROR(VLOOKUP($B10, Tabella_CREA!$F$2:$I$65, 4, FALSE) * C11,0)","v":0},0,{"$f":"IFERROR(VLOOKUP($B10, Tabella_CREA!$F$2:$G$65, 2, FALSE) * C11, 0)","v":0},null,0,0,null,{"$f":"IF($J11=\"SI\",$F11*10%,0)","v":0},0,null,{"$f":"IF($M11<>\"\",IFERROR($F11*VLOOKUP($M11,Elenchi!$A$1:$B$10,2,FALSE),\"\"),0)","v":0},{"$f":"IF($M11<>\"\",IFERROR($D11*VLOOKUP($M11,Elenchi!$A$1:$B$10,2,FALSE),\"\"),0)","v":0},null,null,null,null,{"$f":"tappa1","v":"00/00/00"},null,null,{"$f":"IFERROR(VLOOKUP($B10, Tabella_CREA!$F$2:$I$65, 4, FALSE) * V11,0)","v":0},0,{"$f":"IFERROR(VLOOKUP($B10, Tabella_CREA!$F$2:$G$65, 2, FALSE) * V11, 0)","v":0},null,0,0,null,{"$f":"IF($J11=\"SI\",$F11*10%,0)","v":0},{"$f":"IF($J11=\"SI\",$D11*10%,0)","v":0},null,{"$f":"IF($M11<>\"\",IFERROR($F11*VLOOKUP($M11,Elenchi!$A$1:$B$10,2,FALSE),\"\"),0)","v":0},{"$f":"IF($M11<>\"\",IFERROR($D11*VLOOKUP($M11,Elenchi!$A$1:$B$10,2,FALSE),\"\"),0)","v":0}]
[{"$f":"tappa2","v":"00/00/00"},null,null,{"$f":"IFERROR(VLOOKUP($B10, Tabella_CREA!$F$2:$I$65, 4, FALSE) * C12, 0)","v":0},0,{"$f":"IFERROR(VLOOKUP($B10, Tabella_CREA!$F$2:$G$65, 2, FALSE) * C12, 0)","v":0},null,0,0,null,0,0,null,{"$f":"IF($M12<>\"\",IFERROR($F12*VLOOKUP($M12,Elenchi!$A$1:$B$10,2,FALSE),\"\"),0)","v":0},{"$f":"IF($M12<>\"\",IFERROR($D12*VLOOKUP($M12,Elenchi!$A$1:$B$10,2,FALSE),\"\"),0)","v":0},null,null,null,null,{"$f":"tappa2","v":"00/00/00"},null,null,{"$f":"IFERROR(VLOOKUP($B10, Tabella_CREA!$F$2:$I$65, 4, FALSE) * V12, 0)","v":0},0,{"$f":"IFERROR(VLOOKUP($B10, Tabella_CREA!$F$2:$G$65, 2, FALSE) * V12, 0)","v":0},null,0,0,null,0,{"$f":"IF($J12=\"SI\",$D12*10%,0)","v":0},null,{"$f":"IF($M12<>\"\",IFERROR($F12*VLOOKUP($M12,Elenchi!$A$1:$B$10,2,FALSE),\"\"),0)","v":0},{"$f":"IF($M12<>\"\",IFERROR($D12*VLOOKUP($M12,Elenchi!$A$1:$B$10,2,FALSE),\"\"),0)","v":0}]
[{"$f":"tappa3","v":"00/00/00"},null,null,{"$f":"IFERROR(VLOOKUP($B10, Tabella_CREA!$F$2:$I$65, 4, FALSE) * C13, 0)","v":0},0,{"$f":"IFERROR(VLOOKUP($B10, Tabella_CREA!$F$2:$G$65, 2, FALSE) * C13, 0)","v":0},null,0,0,null,0,0,null,{"$f":"IF($M13<>\"\",IFERROR($F13*VLOOKUP($M13,Elenchi!$A$1:$B$10,2,FALSE),\"\"),0)","v":0},{"$f":"IF($M13<>\"\",IFERROR($D13*VLOOKUP($M13,Elenchi!$A$1:$B$10,2,FALSE),\"\"),0)","v":0},null,null,null,null,{"$f":"tappa3","v":"00/00/00"},null,null,{"$f":"IFERROR(VLOOKUP($B10, Tabella_CREA!$F$2:$I$65, 4, FALSE) * V13, 0)","v":0},0,{"$f":"IFERROR(VLOOKUP($B10, Tabella_CREA!$F$2:$G$65, 2, FALSE) * V13, 0)","v":0},null,0,0,null,0,{"$f":"IF($J13=\"SI\",$D13*10%,0)","v":0},null,{"$f":"IF($M13<>\"\",IFERROR($F13*VLOOKUP($M13,Elenchi!$A$1:$B$10,2,FALSE),\"\"),0)","v":0},{"$f":"IF($M13<>\"\",IFERROR($D13*VLOOKUP($M13,Elenchi!$A$1:$B$10,2,FALSE),\"\"),0)","v":0}]
[{"$f":"tappa0","v":"Ex-ante"},null,null,{"$f":"IFERROR(VLOOKUP($B14, Tabella_CREA!$F$2:$I$65, 4, FALSE) * C14,0)","v":0},0,{"$f":"IFERROR(VLOOKUP($B14, Tabella_CREA!$F$2:$G$65, 2, FALSE) * C14, 0)","v":0},null,0,0,null,0,0,null,{"$f":"IF($M14<>\"\",IFERROR($F14*VLOOKUP($M14,Elenchi!$A$1:$B$10,2,FALSE),\"\"),0)","v":0},{"$f":"IF($M14<>\"\",IFERROR($D14*VLOOKUP($M14,Elenchi!$A$1:$B$10,2,FALSE),\"\"),0)","v":0}]
[{"$f":"tappa1","v":"00/00/00"},null,null,{"$f":"IFERROR(VLOOKUP($B14, Tabella_CREA!$F$2:$I$65, 4, FALSE) * C15,0)","v":0},0,{"$f":"IFERROR(VLOOKUP($B14, Tabella_CREA!$F$2:$G$65, 2, FALSE) * C15, 0)","v":0},null,0,0,null,0,0,null,{"$f":"IF($M15<>\"\",IFERROR($F15*VLOOKUP($M15,Elenchi!$A$1:$B$10,2,FALSE),\"\"),0)","v":0},{"$f":"IF($M15<>\"\",IFERROR($D15*VLOOKUP($M15,Elenchi!$A$1:$B$10,2,FALSE),\"\"),0)","v":0}]
[{"$f":"tappa2","v":"00/00/00"},null,null,{"$f":"IFERROR(VLOOKUP($B14, Tabella_CREA!$F$2:$I$65, 4, FALSE) * C16, 0)","v":0},0,{"$f":"IFERROR(VLOOKUP($B14, Tabella_CREA!$F$2:$G$65, 2, FALSE) * C16, 0)","v":0},null,0,0,null,0,0,null,{"$f":"IF($M16<>\"\",IFERROR($F16*VLOOKUP($M16,Elenchi!$A$1:$B$10,2,FALSE),\"\"),0)","v":0},{"$f":"IF($M16<>\"\",IFERROR($D16*VLOOKUP($M16,Elenchi!$A$1:$B$10,2,FALSE),\"\"),0)","v":0}]
[{"$f":"tappa3","v":"00/00/00"},null,null,{"$f":"IFERROR(VLOOKUP($B14, Tabella_CREA!$F$2:$I$65, 4, FALSE) * C17, 0)","v":0},0,{"$f":"IFERROR(VLOOKUP($B14, Tabella_CREA!$F$2:$G$65, 2, FALSE) * C17, 0)","v":0},null,0,0,null,0,0,null,{"$f":"IF($M17<>\"\",IFERROR($F17*VLOOKUP($M17,Elenchi!$A$1:$B$10,2,FALSE),\"\"),0)","v":0},{"$f":"IF($M17<>\"\",IFERROR($D17*VLOOKUP($M17,Elenchi!$A$1:$B$10,2,FALSE),\"\"),0)","v":0}]
[{"$f":"tappa0","v":"Ex-ante"},null,null,{"$f":"IFERROR(VLOOKUP($B18, Tabella_CREA!$F$2:$I$65, 4, FALSE) * C18,0)","v":0},{"$f":"F18*65%","v":0},{"$f":"IFERROR(VLOOKUP($B18, Tabella_CREA!$F$2:$G$65, 2, FALSE) * C18, 0)","v":0},null,{"$f":"IF($G18=\"SI\",$F18*10%,0)","v":0},{"$f":"IF($G18=\"SI\",$D18*10%,0)","v":0},null,0,0,null,{"$f":"IF($M18<>\"\",IFERROR($F18*VLOOKUP($M18,Elenchi!$A$1:$B$10,2,FALSE),\"\"),0)","v":0},{"$f":"IF($M18<>\"\",IFERROR($D18*VLOOKUP($M18,Elenchi!$A$1:$B$10,2,FALSE),\"\"),0)","v":0}]
[{"$f":"tappa1","v":"00/00/00"},null,null,{"$f":"IFERROR(VLOOKUP($B18, Tabella_CREA!$F$2:$I$65, 4, FALSE) * C19,0)","v":0},{"$f":"F19*65%","v":0},{"$f":"IFERROR(VLOOKUP($B18, Tabella_CREA!$F$2:$G$65, 2, FALSE) * C19, 0)","v":0},null,{"$f":"IF($G19=\"SI\",$F19*10%,0)","v":0},{"$f":"IF($G19=\"SI\",$D19*10%,0)","v":0},null,0,0,null,{"$f":"IF($M19<>\"\",IFERROR($F19*VLOOKUP($M19,Elenchi!$A$1:$B$10,2,FALSE),\"\"),0)","v":0},{"$f":"IF($M19<>\"\",IFERROR($D19*VLOOKUP($M19,Elenchi!$A$1:$B$10,2,FALSE),\"\"),0)","v":0}]
[{"$f":"tappa2","v":"00/00/00"},null,null,{"$f":"IFERROR(VLOOKUP($B18, Tabella_CREA!$F$2:$I$65, 4, FALSE) * C20, 0)","v":0},{"$f":"F20*65%","v":0},{"$f":"IFERROR(VLOOKUP($B18, Tabella_CREA!$F$2:$G$65, 2, FALSE) * C20, 0)","v":0},null,{"$f":"IF($G20=\"SI\",$F20*10%,0)","v":0},{"$f":"IF($G20=\"SI\",$D20*10%,0)","v":0},null,0,0,null,{"$f":"IF($M20<>\"\",IFERROR($F20*VLOOKUP($M20,Elenchi!$A$1:$B$10,2,FALSE),\"\"),0)","v":0},{"$f":"IF($M20<>\"\",IFERROR($D20*VLOOKUP($M20,Elenchi!$A$1:$B$10,2,FALSE),\"\"),0)","v":0}]
[{"$f":"tappa3","v":"00/00/00"},null,null,{"$f":"IFERROR(VLOOKUP($B18, Tabella_CREA!$F$2:$I$65, 4, FALSE) * C21, 0)","v":0},{"$f":"F21*65%","v":0},{"$f":"IFERROR(VLOOKUP($B18, Tabella_CREA!$F$2:$G$65, 2, FALSE) * C21, 0)","v":0},null,{"$f":"IF($G21=\"SI\",$F21*10%,0)","v":0},{"$f":"IF($G21=\"SI\",$D21*10%,0)","v":0},null,0,0,null,{"$f":"IF($M21<>\"\",IFERROR($F21*VLOOKUP($M21,Elenchi!$A$1:$B$10,2,FALSE),\"\"),0)","v":0},{"$f":"IF($M21<>\"\",IFERROR($D21*VLOOKUP($M21,Elenchi!$A$1:$B$10,2,FALSE),\"\"),0)","v":0}]

{"sheet":"Allev","index":4,"n_rows":23,"n_cols":38,"rows_kept":23,"cut":false,"hidden":false,"merged":[[8,36,12,36],[15,27,17,27],[8,38,12,38],[8,39,12,39],[13,38,17,38],[13,39,17,39],[13,36,17,36],[13,37,17,37],[8,30,12,30],[8,31,12,31],[8,32,12,32],[8,33,12,33],[8,34,12,34],[18,38,22,38],[18,39,22,39],[1,17,1,18],[18,18,22,18],[18,17,22,17],[13,18,17,18],[13,17,17,17],[8,18,12,18],[8,17,12,17],[18,35,22,35],[18,36,22,36],[18,37,22,37],[20,27,22,27],[18,30,22,30],[18,31,22,31],[18,32,22,32],[18,33,22,33],[18,34,22,34],[8,35,12,35],[18,14,22,14],[8,37,12,37],[10,27,12,27],[13,24,17,24],[13,25,17,25],[13,28,17,28],[13,29,17,29],[13,30,17,30],[13,31,17,31],[13,32,17,32],[13,33,17,33],[13,34,17,34],[13,35,17,35],[8,24,12,24],[8,25,12,25],[8,28,12,28],[8,29,12,29],[13,12,17,12],[13,15,17,15],[13,14,17,14],[8,15,12,15],[8,12,12,12],[18,24,22,24],[18,25,22,25],[18,28,22,28],[18,29,22,29],[8,3,12,3],[8,4,12,4],[18,13,22,13],[18,3,22,3],[18,4,22,4],[18,16,22,16],[20,6,22,6],[13,13,17,13],[7,22,22,22],[13,16,17,16],[15,6,17,6],[18,7,22,7],[18,11,22,11],[13,8,17,8],[13,10,17,10],[13,11,17,11],[18,9,22,9],[13,9,17,9],[13,3,17,3],[13,4,17,4],[13,7,17,7],[18,8,22,8],[18,10,22,10],[8,9,12,9],[18,15,22,15],[18,12,22,12],[0,0,0,16],[1,8,1,10],[1,11,1,13],[1,14,1,16],[7,1,22,1],[8,11,12,11],[8,8,12,8],[8,7,12,7],[10,6,12,6],[8,10,12,10],[8,13,12,13],[8,16,12,16],[8,14,12,14]]}
["Attività di Allevamento"]
[null,null,null,null,null,null,null,null,"h) Trasformazione",null,null,"i) Commercializzazione",null,null,"j) Attività extra-agricola",null,null,"i) attività amministrativa / gestionale dell’azienda"]
["Tappa","a) Razza","b) N. capi /\nettari (lumache) /\nalveari (api)","c) Consistenza media","d) Giornate Uomo","e) Costo capi acquistati","f) Costi medi variabili","g) Valore della produzione","h1) Trasformazione","h2) Valore della produzione","h3) Giornate","i1) Commercializzazione","i2) Valore della produzione","i3) Giornate","j1) Attività extra-agricola","j2) Valore della produzione","j3) Giornate","i1) Attività amministrativa / gestionale dell’azienda","i2) Giornate"]
[{"$f":"tappa0","v":"Ex-ante"},null,null,null,{"$f":"SUMIFS(E$8:E$4936, $A8:$A4936, $A4)","v":0},null,{"$f":"SUMIFS(G$8:G$4936, $A8:$A4936, $A4)","v":0},{"$f":"SUMIFS(H$8:H$4936, $A8:$A4936, $A4)","v":0},null,{"$f":"SUMIFS(J$8:J$4936, $A8:$A4936, $A4)","v":0},{"$f":"SUMIFS(K$8:K$4936, $A8:$A4936, $A4)","v":0},null,{"$f":"SUMIFS(M$8:M$4936, $A8:$A4936, $A4)","v":0},{"$f":"SUMIFS(N$8:N$4936, $A8:$A4936, $A4)","v":0},null,{"$f":"SUMIFS(P$8:P$4936, $A8:$A4936, $A4)","v":0},{"$f":"SUMIFS(Q$8:Q$4936, $A8:$A4936, $A4)","v":0},null,{"$f":"SUMIFS(S$8:S$4936, $A8:$A4936, $A4)","v":0}]
[{"$f":"tappa1","v":"00/00/00"},null,null,null,{"$f":"SUMIFS(E$8:E$4936, $A8:$A4936, $A5)","v":0},null,{"$f":"SUMIFS(G$8:G$4936, $A8:$A4936, $A5)","v":0},{"$f":"SUMIFS(H$8:H$4936, $A8:$A4936, $A5)","v":0},null,{"$f":"SUMIFS(J$8:J$4936, $A8:$A4936, $A5)","v":0},{"$f":"SUMIFS(K$8:K$4936, $A8:$A4936, $A5)","v":0},null,{"$f":"SUMIFS(M$8:M$4936, $A8:$A4936, $A5)","v":0},{"$f":"SUMIFS(N$8:N$4936, $A8:$A4936, $A5)","v":0},null,{"$f":"SUMIFS(P$8:P$4936, $A8:$A4936, $A5)","v":0},{"$f":"SUMIFS(Q$8:Q$4936, $A8:$A4936, $A5)","v":0},null,{"$f":"SUMIFS(S$8:S$4936, $A8:$A4936, $A5)","v":0}]
[{"$f":"tappa2","v":"00/00/00"},null,null,null,{"$f":"SUMIFS(E$8:E$4936, $A8:$A4936, $A6)","v":0},null,{"$f":"SUMIFS(G$8:G$4936, $A8:$A4936, $A6)","v":0},{"$f":"SUMIFS(H$8:H$4936, $A8:$A4936, $A6)","v":0},null,{"$f":"SUMIFS(J$8:J$4936, $A8:$A4936, $A6)","v":0},{"$f":"SUMIFS(K$8:K$4936, $A8:$A4936, $A6)","v":0},null,{"$f":"SUMIFS(M$8:M$4936, $A8:$A4936, $A6)","v":0},{"$f":"SUMIFS(N$8:N$4936, $A8:$A4936, $A6)","v":0},null,{"$f":"SUMIFS(P$8:P$4936, $A8:$A4936, $A6)","v":0},{"$f":"SUMIFS(Q$8:Q$4936, $A8:$A4936, $A6)","v":0},null,{"$f":"SUMIFS(S$8:S$4936, $A8:$A4936, $A6)","v":0}]
[{"$f":"tappa3","v":"00/00/00"},null,null,null,{"$f":"SUMIFS(E$8:E$4936, $A8:$A4936, $A7)","v":0},null,{"$f":"SUMIFS(G$8:G$4936, $A8:$A4936, $A7)","v":0},{"$f":"SUMIFS(H$8:H$4936, $A8:$A4936, $A7)","v":0},null,{"$f":"SUMIFS(J$8:J$4936, $A8:$A4936, $A7)","v":0},{"$f":"SUMIFS(K$8:K$4936, $A8:$A4936, $A7)","v":0},null,{"$f":"SUMIFS(M$8:M$4936, $A8:$A4936, $A7)","v":0},{"$f":"SUMIFS(N$8:N$4936, $A8:$A4936, $A7)","v":0},null,{"$f":"SUMIFS(P$8:P$4936, $A8:$A4936, $A7)","v":0},{"$f":"SUMIFS(Q$8:Q$4936, $A8:$A4936, $A7)","v":0},null,{"$f":"SUMIFS(S$8:S$4936, $A8:$A4936, $A7)","v":0}]
[{"$f":"tappa0","v":"Ex-ante"},null,null,null,{"$f":"IFERROR(VLOOKUP(B8,Tabella_CREA!$F$66:$I$93,4,FALSE)*D8,\"0\")","v":"0"},null,null,{"$f":"IFERROR(VLOOKUP(B8,Tabella_CREA!$F$66:$I$93,2,FALSE)*D8,0)","v":0},null,{"$f":"IF($I8=\"SI\",($H8)*10%,0)","v":0},{"$f":"IF($I8=\"SI\",$E8*10%,0)","v":0},null,{"$f":"IF($L8=\"SI\",$H8*10%,0)","v":0},{"$f":"IF($L8=\"SI\",$E8*10%,0)","v":0},null,{"$f":"IF($O8<>\"\",$H8*VLOOKUP($O8,Elenchi!$A$1:$B$10,2,FALSE),0)","v":0},{"$f":"IF($O8<>\"\",$E8*VLOOKUP($O8,Elenchi!$A$1:$B$10,2,FALSE),0)","v":0},null,null,null,null,{"$f":"tappa0","v":"Ex-ante"},null,null,null,{"$f":"IFERROR(VLOOKUP(W8,Tabella_CREA!$F$66:$I$93,4,FALSE)*Y8,\"0\")","v":"0"},null,null,{"$f":"IFERROR(VLOOKUP(W8,Tabella_CREA!$F$66:$I$93,2,FALSE)*Y8,0)","v":0},null,{"$f":"IF($I8=\"SI\",($H8)*10%,0)","v":0},{"$f":"IF($I8=\"SI\",$E8*10%,0)","v":0},null,{"$f":"IF($L8=\"SI\",$H8*10%,0)","v":0},{"$f":"IF($L8=\"SI\",$E8*10%,0)","v":0},null,{"$f":"IF($O8<>\"\",$H8*VLOOKUP($O8,Elenchi!$A$1:$B$10,2,FALSE),0)","v":0},{"$f":"IF($O8<>\"\",$E8*VLOOKUP($O8,Elenchi!$A$1:$B$10,2,FALSE),0)","v":0}]
[{"$f":"tappa1","v":"00/00/00"},null,null,null,{"$f":"IFERROR(VLOOKUP(B8,Tabella_CREA!$F$66:$I$93,4,FALSE)*D9,\"0\")","v":"0"},null,{"$f":"G10+G11","v":0},{"$f":"IFERROR(VLOOKUP(B8,Tabella_CREA!$F$66:$I$93,2,FALSE)*D9,0)","v":0},null,{"$f":"IF($I9=\"SI\",($H9)*10%,0)","v":0},{"$f":"IF($I9=\"SI\",$E9*10%,0)","v":0},null,{"$f":"IF($L9=\"SI\",$H9*10%,0)","v":0},{"$f":"IF($L9=\"SI\",$E9*10%,0)","v":0},null,{"$f":"IF($O9<>\"\",$H9*VLOOKUP($O9,Elenchi!$A$1:$B$10,2,FALSE),0)","v":0},{"$f":"IF($O9<>\"\",$E9*VLOOKUP($O9,Elenchi!$A$1:$B$10,2,FALSE),0)","v":0},null,null,null,null,{"$f":"tappa1","v":"00/00/00"},null,null,null,{"$f":"IFERROR(VLOOKUP(W8,Tabella_CREA!$F$66:$I$93,4,FALSE)*Y9,\"0\")","v":"0"},null,{"$f":"AB10+AB11","v":0},{"$f":"IFERROR(VLOOKUP(W8,Tabella_CREA!$F$66:$I$93,2,FALSE)*Y9,0)","v":0},null,{"$f":"IF($I9=\"SI\",($H9)*10%,0)","v":0},{"$f":"IF($I9=\"SI\",$E9*10%,0)","v":0},null,{"$f":"IF($L9=\"SI\",$H9*10%,0)","v":0},{"$f":"IF($L9=\"SI\",$E9*10%,0)","v":0},null,{"$f":"IF($O9<>\"\",$H9*VLOOKUP($O9,Elenchi!$A$1:$B$10,2,FALSE),0)","v":0},{"$f":"IF($O9<>\"\",$E9*VLOOKUP($O9,Elenchi!$A$1:$B$10,2,FALSE),0)","v":0}]
["Capi acquistati",null,null,null,null,null,{"$f":"F10*C10","v":0},{"$f":"IFERROR(VLOOKUP(B10,Tabella_CREA!$F$60:$I$86,2,FALSE)*D10,0)","v":0},null,null,0,null,0,{"$f":"IF($L10=\"SI\",$E10*10%,0)","v":0},null,{"$f":"IF($O10<>\"\",$H10*VLOOKUP($O10,Elenchi!$A$1:$B$10,2,FALSE),0)","v":0},{"$f":"IF($O10<>\"\",$E10*VLOOKUP($O10,Elenchi!$A$1:$B$10,2,FALSE),0)","v":0},null,null,null,null,"Capi acquistati",null,null,null,null,null,{"$f":"AA10*X10","v":0},{"$f":"IFERROR(VLOOKUP(W10,Tabella_CREA!$F$60:$I$86,2,FALSE)*Y10,0)","v":0},null,null,0,null,0,{"$f":"IF($L10=\"SI\",$E10*10%,0)","v":0},null,{"$f":"IF($O10<>\"\",$H10*VLOOKUP($O10,Elenchi!$A$1:$B$10,2,FALSE),0)","v":0},{"$f":"IF($O10<>\"\",$E10*VLOOKUP($O10,Elenchi!$A$1:$B$10,2,FALSE),0)","v":0}]
["Capi nati (o entrati nella categoria per peso/età)",null,null,null,null,null,{"$f":"IF(H9<>\"\",H9*75%,0)","v":0},{"$f":"IFERROR(VLOOKUP(B11,Tabella_CREA!$F$60:$I$86,2,FALSE)*D11,0)","v":0},null,null,0,null,0,0,null,{"$f":"IF($O11<>\"\",$H11*VLOOKUP($O11,Elenchi!$A$1:$B$10,2,FALSE),0)","v":0},{"$f":"IF($O11<>\"\",$E11*VLOOKUP($O11,Elenchi!$A$1:$B$10,2,FALSE),0)","v":0},null,null,null,null,"Capi nati (o entrati nella categoria per peso/età)",null,null,null,null,null,{"$f":"IF(AC9<>\"\",AC9*75%,0)","v":0},{"$f":"IFERROR(VLOOKUP(W11,Tabella_CREA!$F$60:$I$86,2,FALSE)*Y11,0)","v":0},null,null,0,null,0,0,null,{"$f":"IF($O11<>\"\",$H11*VLOOKUP($O11,Elenchi!$A$1:$B$10,2,FALSE),0)","v":0},{"$f":"IF($O11<>\"\",$E11*VLOOKUP($O11,Elenchi!$A$1:$B$10,2,FALSE),0)","v":0}]
["Capi morti (o usciti dalla categoria per peso/età)",null,null,null,null,null,null,{"$f":"IFERROR(VLOOKUP(B12,Tabella_CREA!$F$60:$I$86,2,FALSE)*D12,0)","v":0},null,null,0,null,0,0,null,{"$f":"IF($O12<>\"\",$H12*VLOOKUP($O12,Elenchi!$A$1:$B$10,2,FALSE),0)","v":0},{"$f":"IF($O12<>\"\",$E12*VLOOKUP($O12,Elenchi!$A$1:$B$10,2,FALSE),0)","v":0},null,null,null,null,"Capi morti (o usciti dalla categoria per peso/età)",null,null,null,null,null,null,{"$f":"IFERROR(VLOOKUP(W12,Tabella_CREA!$F$60:$I$86,2,FALSE)*Y12,0)","v":0},null,null,0,null,0,0,null,{"$f":"IF($O12<>\"\",$H12*VLOOKUP($O12,Elenchi!$A$1:$B$10,2,FALSE),0)","v":0},{"$f":"IF($O12<>\"\",$E12*VLOOKUP($O12,Elenchi!$A$1:$B$10,2,FALSE),0)","v":0}]
["Capi venduti",null,null,null,null,null,null,{"$f":"IFERROR(VLOOKUP(B13,Tabella_CREA!$F$60:$I$86,2,FALSE)*D13,0)","v":0},null,null,0,null,0,0,null,{"$f":"IF($O13<>\"\",$H13*VLOOKUP($O13,Elenchi!$A$1:$B$10,2,FALSE),0)","v":0},{"$f":"IF($O13<>\"\",$E13*VLOOKUP($O13,Elenchi!$A$1:$B$10,2,FALSE),0)","v":0},null,null,null,null,"Capi venduti",null,null,null,null,null,null,{"$f":"IFERROR(VLOOKUP(W13,Tabella_CREA!$F$60:$I$86,2,FALSE)*Y13,0)","v":0},null,null,0,null,0,0,null,{"$f":"IF($O13<>\"\",$H13*VLOOKUP($O13,Elenchi!$A$1:$B$10,2,FALSE),0)","v":0},{"$f":"IF($O13<>\"\",$E13*VLOOKUP($O13,Elenchi!$A$1:$B$10,2,FALSE),0)","v":0}]
[{"$f":"tappa2","v":"00/00/00"},null,null,null,{"$f":"IFERROR(VLOOKUP(B8,Tabella_CREA!$F$66:$I$93,4,FALSE)*D14,\"0\")","v":"0"},null,{"$f":"G15+G16","v":0},{"$f":"IFERROR(VLOOKUP(B8,Tabella_CREA!$F$66:$I$93,2,FALSE)*D14,0)","v":0},null,{"$f":"IF($I14=\"SI\",($H14)*10%,0)","v":0},0,null,0,{"$f":"IF($L14=\"SI\",$E14*10%,0)","v":0},null,{"$f":"IF($O14<>\"\",$H14*VLOOKUP($O14,Elenchi!$A$1:$B$10,2,FALSE),0)","v":0},{"$f":"IF($O14<>\"\",$E14*VLOOKUP($O14,Elenchi!$A$1:$B$10,2,FALSE),0)","v":0},null,null,null,null,{"$f":"tappa2","v":"00/00/00"},null,null,null,{"$f":"IFERROR(VLOOKUP(W8,Tabella_CREA!$F$66:$I$93,4,FALSE)*Y14,\"0\")","v":"0"},null,{"$f":"AB15+AB16","v":0},{"$f":"IFERROR(VLOOKUP(W8,Tabella_CREA!$F$66:$I$93,2,FALSE)*Y14,0)","v":0},null,{"$f":"IF($I14=\"SI\",($H14)*10%,0)","v":0},0,null,0,{"$f":"IF($L14=\"SI\",$E14*10%,0)","v":0},null,{"$f":"IF($O14<>\"\",$H14*VLOOKUP($O14,Elenchi!$A$1:$B$10,2,FALSE),0)","v":0},{"$f":"IF($O14<>\"\",$E14*VLOOKUP($O14,Elenchi!$A$1:$B$10,2,FALSE),0)","v":0}]
["Capi acquistati",null,null,null,null,null,{"$f":"IF(F15<>\"\",(F15*C15),0)","v":0},null,null,null,0,null,0,0,null,{"$f":"IF($O15<>\"\",$H15*VLOOKUP($O15,Elenchi!$A$1:$B$10,2,FALSE),0)","v":0},{"$f":"IF($O15<>\"\",$E15*VLOOKUP($O15,Elenchi!$A$1:$B$10,2,FALSE),0)","v":0},null,null,null,null,"Capi acquistati",null,null,null,null,null,{"$f":"IF(AA15<>\"\",(AA15*X15),0)","v":0},null,null,null,0,null,0,0,null,{"$f":"IF($O15<>\"\",$H15*VLOOKUP($O15,Elenchi!$A$1:$B$10,2,FALSE),0)","v":0},{"$f":"IF($O15<>\"\",$E15*VLOOKUP($O15,Elenchi!$A$1:$B$10,2,FALSE),0)","v":0}]
["Capi nati (o entrati nella categoria per peso/età)",null,null,null,null,null,{"$f":"IF(H14<>\"\",H14*75%,0)","v":0},null,null,null,0,null,0,0,null,{"$f":"IF($O16<>\"\",$H16*VLOOKUP($O16,Elenchi!$A$1:$B$10,2,FALSE),0)","v":0},{"$f":"IF($O16<>\"\",$E16*VLOOKUP($O16,Elenchi!$A$1:$B$10,2,FALSE),0)","v":0},null,null,null,null,"Capi nati (o entrati nella categoria per peso/età)",null,null,null,null,null,{"$f":"IF(AC14<>\"\",AC14*75%,0)","v":0},null,null,null,0,null,0,0,null,{"$f":"IF($O16<>\"\",$H16*VLOOKUP($O16,Elenchi!$A$1:$B$10,2,FALSE),0)","v":0},{"$f":"IF($O16<>\"\",$E16*VLOOKUP($O16,Elenchi!$A$1:$B$10,2,FALSE),0)","v":0}]
["Capi morti (o usciti dalla categoria per peso/età)",null,null,null,null,null,null,null,null,null,0,null,0,0,null,{"$f":"IF($O17<>\"\",$H17*VLOOKUP($O17,Elenchi!$A$1:$B$10,2,FALSE),0)","v":0},{"$f":"IF($O17<>\"\",$E17*VLOOKUP($O17,Elenchi!$A$1:$B$10,2,FALSE),0)","v":0},null,null,null,null,"Capi morti (o usciti dalla categoria per peso/età)",null,null,null,null,null,null,null,null,null,0,null,0,0,null,{"$f":"IF($O17<>\"\",$H17*VLOOKUP($O17,Elenchi!$A$1:$B$10,2,FALSE),0)","v":0},{"$f":"IF($O17<>\"\",$E17*VLOOKUP($O17,Elenchi!$A$1:$B$10,2,FALSE),0)","v":0}]
["Capi venduti",null,null,null,null,null,null,null,null,null,0,null,0,0,null,{"$f":"IF($O18<>\"\",$H18*VLOOKUP($O18,Elenchi!$A$1:$B$10,2,FALSE),0)","v":0},{"$f":"IF($O18<>\"\",$E18*VLOOKUP($O18,Elenchi!$A$1:$B$10,2,FALSE),0)","v":0},null,null,null,null,"Capi venduti",null,null,null,null,null,null,null,null,null,0,null,0,0,null,{"$f":"IF($O18<>\"\",$H18*VLOOKUP($O18,Elenchi!$A$1:$B$10,2,FALSE),0)","v":0},{"$f":"IF($O18<>\"\",$E18*VLOOKUP($O18,Elenchi!$A$1:$B$10,2,FALSE),0)","v":0}]
[{"$f":"tappa3","v":"00/00/00"},null,null,null,{"$f":"IFERROR(VLOOKUP(B8,Tabella_CREA!$F$66:$I$93,4,FALSE)*D19,\"0\")","v":"0"},null,{"$f":"G20+G21","v":0},{"$f":"IFERROR(VLOOKUP(B8,Tabella_CREA!$F$66:$I$93,2,FALSE)*D19,0)","v":0},null,{"$f":"IF($I19=\"SI\",($H19)*10%,0)","v":0},0,null,0,{"$f":"IF($L19=\"SI\",$E19*10%,0)","v":0},null,{"$f":"IF($O19<>\"\",$H19*VLOOKUP($O19,Elenchi!$A$1:$B$10,2,FALSE),0)","v":0},{"$f":"IF($O19<>\"\",$E19*VLOOKUP($O19,Elenchi!$A$1:$B$10,2,FALSE),0)","v":0},null,null,null,null,{"$f":"tappa3","v":"00/00/00"},null,null,null,{"$f":"IFERROR(VLOOKUP(W8,Tabella_CREA!$F$66:$I$93,4,FALSE)*Y19,\"0\")","v":"0"},null,{"$f":"AB20+AB21","v":0},{"$f":"IFERROR(VLOOKUP(W8,Tabella_CREA!$F$66:$I$93,2,FALSE)*Y19,0)","v":0},null,{"$f":"IF($I19=\"SI\",($H19)*10%,0)","v":0},0,null,0,{"$f":"IF($L19=\"SI\",$E19*10%,0)","v":0},null,{"$f":"IF($O19<>\"\",$H19*VLOOKUP($O19,Elenchi!$A$1:$B$10,2,FALSE),0)","v":0},{"$f":"IF($O19<>\"\",$E19*VLOOKUP($O19,Elenchi!$A$1:$B$10,2,FALSE),0)","v":0}]
["Capi acquistati",null,null,null,null,null,{"$f":"IF(F20<>\"\",(F20*C20),0)","v":0},null,null,null,0,null,0,0,null,{"$f":"IF($O20<>\"\",$H20*VLOOKUP($O20,Elenchi!$A$1:$B$10,2,FALSE),0)","v":0},{"$f":"IF($O20<>\"\",$E20*VLOOKUP($O20,Elenchi!$A$1:$B$10,2,FALSE),0)","v":0},null,null,null,null,"Capi acquistati",null,null,null,null,null,{"$f":"IF(AA20<>\"\",(AA20*X20),0)","v":0},null,null,null,0,null,0,0,null,{"$f":"IF($O20<>\"\",$H20*VLOOKUP($O20,Elenchi!$A$1:$B$10,2,FALSE),0)","v":0},{"$f":"IF($O20<>\"\",$E20*VLOOKUP($O20,Elenchi!$A$1:$B$10,2,FALSE),0)","v":0}]
["Capi nati (o entrati nella categoria per peso/età)",null,null,null,null,null,{"$f":"IF(H19<>\"\",H19*75%,0)","v":0},null,null,null,0,null,0,0,null,{"$f":"IF($O21<>\"\",$H21*VLOOKUP($O21,Elenchi!$A$1:$B$10,2,FALSE),0)","v":0},{"$f":"IF($O21<>\"\",$E21*VLOOKUP($O21,Elenchi!$A$1:$B$10,2,FALSE),0)","v":0},null,null,null,null,"Capi nati (o entrati nella categoria per peso/età)",null,null,null,null,null,{"$f":"IF(AC19<>\"\",AC19*75%,0)","v":0},null,null,null,0,null,0,0,null,{"$f":"IF($O21<>\"\",$H21*VLOOKUP($O21,Elenchi!$A$1:$B$10,2,FALSE),0)","v":0},{"$f":"IF($O21<>\"\",$E21*VLOOKUP($O21,Elenchi!$A$1:$B$10,2,FALSE),0)","v":0}]
["Capi morti (o usciti dalla categoria per peso/età)",null,null,null,null,null,null,null,null,null,0,null,0,0,null,{"$f":"IF($O22<>\"\",$H22*VLOOKUP($O22,Elenchi!$A$1:$B$10,2,FALSE),0)","v":0},{"$f":"IF($O22<>\"\",$E22*VLOOKUP($O22,Elenchi!$A$1:$B$10,2,FALSE),0)","v":0},null,null,null,null,"Capi morti (o usciti dalla categoria per peso/età)",null,null,null,null,null,null,null,null,null,0,null,0,0,null,{"$f":"IF($O22<>\"\",$H22*VLOOKUP($O22,Elenchi!$A$1:$B$10,2,FALSE),0)","v":0},{"$f":"IF($O22<>\"\",$E22*VLOOKUP($O22,Elenchi!$A$1:$B$10,2,FALSE),0)","v":0}]
["Capi venduti",null,null,null,null,null,null,null,null,null,0,null,0,0,null,{"$f":"IF($O23<>\"\",$H23*VLOOKUP($O23,Elenchi!$A$1:$B$10,2,FALSE),0)","v":0},{"$f":"IF($O23<>\"\",$E23*VLOOKUP($O23,Elenchi!$A$1:$B$10,2,FALSE),0)","v":0},null,null,null,null,"Capi venduti",null,null,null,null,null,null,null,null,null,0,null,0,0,null,{"$f":"IF($O23<>\"\",$H23*VLOOKUP($O23,Elenchi!$A$1:$B$10,2,FALSE),0)","v":0},{"$f":"IF($O23<>\"\",$E23*VLOOKUP($O23,Elenchi!$A$1:$B$10,2,FALSE),0)","v":0}]

{"sheet":"Trasf","index":5,"n_rows":15,"n_cols":10,"rows_kept":15,"cut":false,"hidden":false,"merged":[[1,0,1,6],[0,0,0,6],[7,1,10,1],[7,10,10,10],[11,1,14,1]]}
["Attività di Trasformazione"]
[" Costi variabili Attività di trasformazione: tutti i costi del processo di trasformazione e della logistica aziendale, riferibili alle fasi di prima trasformazione della materia prima, imballaggio e stoccaggio del prodotto trasformato. "]
["Tappa","a) Prodotto trasformato","b) Materia prima re-impiegata (%)","c) Percentuale di trasformazione (%)","d) Quantità trasformata","e) Prezzo","f) Costi variabili di trasformazione"]
[{"$f":"tappa0","v":"Ex-ante"},null,null,null,null,null,{"$f":"SUMIFS(G$8:G$1100, $A$8:$A$1100, $A4)","v":0}]
[{"$f":"tappa1","v":"00/00/00"},null,null,null,null,null,{"$f":"SUMIFS(G$8:G$1100, $A$8:$A$1100, $A5)","v":0}]
[{"$f":"tappa2","v":"00/00/00"},null,null,null,null,null,{"$f":"SUMIFS(G$8:G$1100, $A$8:$A$1100, $A6)","v":0}]
[{"$f":"tappa3","v":"00/00/00"},null,null,null,null,null,{"$f":"SUMIFS(G$8:G$1100, $A$8:$A$1100, $A7)","v":0}]
[{"$f":"tappa0","v":"Ex-ante"},null,null,null,null,null,null,null,null,{"$f":"tappa0","v":"Ex-ante"}]
[{"$f":"tappa1","v":"00/00/00"},null,null,null,null,null,null,null,null,{"$f":"tappa1","v":"00/00/00"}]
[{"$f":"tappa2","v":"00/00/00"},null,null,null,null,null,null,null,null,{"$f":"tappa2","v":"00/00/00"}]
[{"$f":"tappa3","v":"00/00/00"},null,null,null,null,null,null,null,null,{"$f":"tappa3","v":"00/00/00"}]
[{"$f":"tappa0","v":"Ex-ante"}]
[{"$f":"tappa1","v":"00/00/00"}]
[{"$f":"tappa2","v":"00/00/00"}]
[{"$f":"tappa3","v":"00/00/00"}]

{"sheet":"Commerc","index":6,"n_rows":15,"n_cols":8,"rows_kept":15,"cut":false,"hidden":false,"merged":[[0,0,0,4],[1,0,1,4],[7,1,10,1],[7,8,10,8],[11,1,14,1]]}
["Attività di Commercializzazione"]
["Costi Variabili Attività di Vendita: tutti i costi legati alla commercializzazione del prodotto finito, riferibili a spese per la gestione del magazzino, degli spazi e delle attività di vendita, ovvero ogni ulteriore costo direttamente collegato alla commercializzaizone sostenuto dall'azienda."]
["Tappa","a) Prodotto venduto","b) Prezzo applicato","c) Quantità venduta","d) Costi variabili di Commercializzazione"]
[{"$f":"tappa0","v":"Ex-ante"},null,null,null,{"$f":"SUMIFS(E$8:E$1100, $A$8:$A$1100, $A4)","v":0}]
[{"$f":"tappa1","v":"00/00/00"},null,null,null,{"$f":"SUMIFS(E$8:E$1100, $A$8:$A$1100, $A5)","v":0}]
[{"$f":"tappa2","v":"00/00/00"},null,null,null,{"$f":"SUMIFS(E$8:E$1100, $A$8:$A$1100, $A6)","v":0}]
[{"$f":"tappa3","v":"00/00/00"},null,null,null,{"$f":"SUMIFS(E$8:E$1100, $A$8:$A$1100, $A7)","v":0}]
[{"$f":"tappa0","v":"Ex-ante"},null,null,null,null,null,null,{"$f":"tappa0","v":"Ex-ante"}]
[{"$f":"tappa1","v":"00/00/00"},null,null,null,null,null,null,{"$f":"tappa1","v":"00/00/00"}]
[{"$f":"tappa2","v":"00/00/00"},null,null,null,null,null,null,{"$f":"tappa2","v":"00/00/00"}]
[{"$f":"tappa3","v":"00/00/00"},null,null,null,null,null,null,{"$f":"tappa3","v":"00/00/00"}]
[{"$f":"tappa0","v":"Ex-ante"}]
[{"$f":"tappa1","v":"00/00/00"}]
[{"$f":"tappa2","v":"00/00/00"}]
[{"$f":"tappa3","v":"00/00/00"}]

{"sheet":"Extra-Agricolo","index":7,"n_rows":15,"n_cols":8,"rows_kept":15,"cut":false,"hidden":false,"merged":[[11,1,14,1],[11,2,14,2],[7,9,10,9],[0,0,0,4],[1,0,1,4],[7,2,10,2],[7,1,10,1],[7,8,10,8]]}
["Diversificazione della Attività extra-agricola "]
["Costi Variabili Attività extra-agricola: sono ricompresi tutti i costi direttamente collegabili all'espletamento dell'attività di diversificazione svolta dall'azienda. "]
["Tappa","a) Ambito di diversificazione","b) Tipologia di macchinari e attrezzature utilizzate","c) Incidenza sul Reddito complessivo (%)","d) Costi variabili dell’attività extra-agricola"]
[{"$f":"tappa0","v":"Ex-ante"},null,null,null,{"$f":"SUMIFS(E$8:E$1100, $A$8:$A$1100, $A4)","v":0}]
[{"$f":"tappa1","v":"00/00/00"},null,null,null,{"$f":"SUMIFS(E$8:E$1100, $A$8:$A$1100, $A5)","v":0}]
[{"$f":"tappa2","v":"00/00/00"},null,null,null,{"$f":"SUMIFS(E$8:E$1100, $A$8:$A$1100, $A6)","v":0}]
[{"$f":"tappa3","v":"00/00/00"},null,null,null,{"$f":"SUMIFS(E$8:E$1100, $A$8:$A$1100, $A7)","v":0}]
[{"$f":"tappa0","v":"Ex-ante"},null,null,null,null,null,null,{"$f":"tappa0","v":"Ex-ante"}]
[{"$f":"tappa1","v":"00/00/00"},null,null,null,null,null,null,{"$f":"tappa1","v":"00/00/00"}]
[{"$f":"tappa2","v":"00/00/00"},null,null,null,null,null,null,{"$f":"tappa2","v":"00/00/00"}]
[{"$f":"tappa3","v":"00/00/00"},null,null,null,null,null,null,{"$f":"tappa3","v":"00/00/00"}]
[{"$f":"tappa0","v":"Ex-ante"}]
[{"$f":"tappa1","v":"00/00/00"}]
[{"$f":"tappa2","v":"00/00/00"}]
[{"$f":"tappa3","v":"00/00/00"}]

{"sheet":"Piano Investimenti","index":8,"n_rows":21,"n_cols":14,"rows_kept":21,"cut":false,"hidden":false,"merged":[[1,0,1,13],[2,10,2,13],[2,5,2,7],[2,9,3,9],[2,8,3,8],[2,4,3,4],[2,3,3,3],[2,2,3,2],[2,1,3,1],[7,0,7,3],[6,0,6,3],[5,0,5,3],[4,0,4,3],[2,0,3,0]]}
["Piano degli Investimenti programmati e modalità di Utilizzo del Sostegno"]
["L’anno si riferisce all’anno di acquisto del bene aziendale.\nIl codice degli investimenti viene opzionato nel menu a tendina e richiama la codificazione degli stessi riportata nell’allegato \"Codice ed Effetti\".\nLa Descrizione degli investimenti si riferisce alla funzionalità operativa del bene\nSub lettera e)  Importi indicativi (le singole voci devono restare le stesse a fine Piano così come il totale non può essere inferiore a quanto preventivato. Gli importi delle singole voci possono comunque variare rispetto alle previsioni fatte ad avvio Piano.\nSub lettera i) indicare gli Importi indicativi previsti per il totale degli investimenti al netto dell’IVA.\nSub lettera i) le mensilità riportate sono calcolate a partire dalla notifica del provvedimento di concessione. "]
["a) Anno","b) Codice","c) Descrizione","d) Individuazione del bene/servizio acquistato","e) Valore unitario di ciascun bene/servizio","f) Effetti",null,null,"g)\nT-C","h) Agricoltura 4.0 ","i) Valori di spesa in base al cronoprogramma (euro)"]
[null,null,null,null,null,"A","B","C",null,null,"i1) Mese 1","i2) Mese 18","i3) Mese 36","i4) Totale (€)"]
["Totale investimento",null,null,null,null,null,null,null,null,null,{"$f":"SUM(K9:K9997)","v":0},{"$f":"SUM(L9:L9997)","v":0},{"$f":"SUM(M9:M9997)","v":0},{"$f":"SUM(N9:N9997)","v":0}]
["Totale investimento per attuazione PSA",null,null,null,null,null,null,null,null,null,null,null,null,{"$f":"12000-Riepilogo!E30","v":12000}]
["Investimento minimo in base al numero degli insediati e all'area di appartenenza",null,null,null,null,null,null,null,null,null,null,null,null,{"$f":"IF(area=\"Area D\",\n   IF(numInsediati=1,70000,\n   IF(numInsediati=2,60000*numInsediati,\n   IF(numInsediati>=3,45000*numInsediati, 0\n   ))),\n\n   IF(numInsediati=1,60000,\n   IF(numInsediati=2,50000*numInsediati,\n   IF(numInsediati>=3,40000*numInsediati, 0\n   )))\n)","v":0}]
[{"$f":"CONCATENATE(\"Totale complessivo\", IF(N8<N7, \" (Sostegno non integralmente utilizzato)\",\"\"))","v":"Totale complessivo"},null,null,null,null,null,null,null,null,null,null,null,null,{"$f":"N5+N6+C8","v":12000}]
[null,{"$f":"IFERROR(VLOOKUP(C9, 'Codici ed effetti'!$C$4:$D$40, 2, FALSE), \"\")","v":""},null,null,null,{"$f":"IFERROR(UPPER(VLOOKUP($C9,'Codici ed effetti'!$C$4:$G$40,3,FALSE)),\"\")","v":""},{"$f":"IFERROR(UPPER(VLOOKUP($C9,'Codici ed effetti'!$C$4:$G$40,4,FALSE)),\"\")","v":""},{"$f":"IFERROR(UPPER(VLOOKUP($C9,'Codici ed effetti'!$C$4:$G$40,5,FALSE)),\"\")","v":""},{"$f":"IF(OR(B9=15, B9=22, B9=25, B9=27, B9=28), \"X\", \"\")","v":""},{"$f":"IF(OR(B9=25, B9=27, B9=28), \"X\", \"\")","v":""},null,null,null,{"$f":"SUM(K9:M9)","v":0}]
[null,{"$f":"IFERROR(VLOOKUP(C10, 'Codici ed effetti'!$C$4:$D$40, 2, FALSE), \"\")","v":""},null,null,null,{"$f":"IFERROR(UPPER(VLOOKUP($C10,'Codici ed effetti'!$C$4:$G$40,3,FALSE)),\"\")","v":""},{"$f":"IFERROR(UPPER(VLOOKUP($C10,'Codici ed effetti'!$C$4:$G$40,4,FALSE)),\"\")","v":""},{"$f":"IFERROR(UPPER(VLOOKUP($C10,'Codici ed effetti'!$C$4:$G$40,5,FALSE)),\"\")","v":""},{"$f":"IF(OR(B10=15, B10=22, B10=25, B10=27, B10=28), \"X\", \"\")","v":""},{"$f":"IF(OR(B10=25, B10=27, B10=28), \"X\", \"\")","v":""},null,null,null,0]
[null,{"$f":"IFERROR(VLOOKUP(C11, 'Codici ed effetti'!$C$4:$D$40, 2, FALSE), \"\")","v":""},null,null,null,{"$f":"IFERROR(UPPER(VLOOKUP($C11,'Codici ed effetti'!$C$4:$G$40,3,FALSE)),\"\")","v":""},{"$f":"IFERROR(UPPER(VLOOKUP($C11,'Codici ed effetti'!$C$4:$G$40,4,FALSE)),\"\")","v":""},{"$f":"IFERROR(UPPER(VLOOKUP($C11,'Codici ed effetti'!$C$4:$G$40,5,FALSE)),\"\")","v":""},"","",null,null,null,0]
[null,{"$f":"IFERROR(VLOOKUP(C12, 'Codici ed effetti'!$C$4:$D$40, 2, FALSE), \"\")","v":""},null,null,null,{"$f":"IFERROR(UPPER(VLOOKUP($C12,'Codici ed effetti'!$C$4:$G$40,3,FALSE)),\"\")","v":""},{"$f":"IFERROR(UPPER(VLOOKUP($C12,'Codici ed effetti'!$C$4:$G$40,4,FALSE)),\"\")","v":""},{"$f":"IFERROR(UPPER(VLOOKUP($C12,'Codici ed effetti'!$C$4:$G$40,5,FALSE)),\"\")","v":""},"","",null,null,null,0]
[null,{"$f":"IFERROR(VLOOKUP(C13, 'Codici ed effetti'!$C$4:$D$40, 2, FALSE), \"\")","v":""},null,null,null,{"$f":"IFERROR(UPPER(VLOOKUP($C13,'Codici ed effetti'!$C$4:$G$40,3,FALSE)),\"\")","v":""},{"$f":"IFERROR(UPPER(VLOOKUP($C13,'Codici ed effetti'!$C$4:$G$40,4,FALSE)),\"\")","v":""},{"$f":"IFERROR(UPPER(VLOOKUP($C13,'Codici ed effetti'!$C$4:$G$40,5,FALSE)),\"\")","v":""},"","",null,null,null,0]
[null,{"$f":"IFERROR(VLOOKUP(C14, 'Codici ed effetti'!$C$4:$D$40, 2, FALSE), \"\")","v":""},null,null,null,{"$f":"IFERROR(UPPER(VLOOKUP($C14,'Codici ed effetti'!$C$4:$G$40,3,FALSE)),\"\")","v":""},{"$f":"IFERROR(UPPER(VLOOKUP($C14,'Codici ed effetti'!$C$4:$G$40,4,FALSE)),\"\")","v":""},{"$f":"IFERROR(UPPER(VLOOKUP($C14,'Codici ed effetti'!$C$4:$G$40,5,FALSE)),\"\")","v":""},"","",null,null,null,0]
[null,{"$f":"IFERROR(VLOOKUP(C15, 'Codici ed effetti'!$C$4:$D$40, 2, FALSE), \"\")","v":""},null,null,null,{"$f":"IFERROR(UPPER(VLOOKUP($C15,'Codici ed effetti'!$C$4:$G$40,3,FALSE)),\"\")","v":""},{"$f":"IFERROR(UPPER(VLOOKUP($C15,'Codici ed effetti'!$C$4:$G$40,4,FALSE)),\"\")","v":""},{"$f":"IFERROR(UPPER(VLOOKUP($C15,'Codici ed effetti'!$C$4:$G$40,5,FALSE)),\"\")","v":""},"","",null,null,null,0]
[null,{"$f":"IFERROR(VLOOKUP(C16, 'Codici ed effetti'!$C$4:$D$40, 2, FALSE), \"\")","v":""},null,null,null,{"$f":"IFERROR(UPPER(VLOOKUP($C16,'Codici ed effetti'!$C$4:$G$40,3,FALSE)),\"\")","v":""},{"$f":"IFERROR(UPPER(VLOOKUP($C16,'Codici ed effetti'!$C$4:$G$40,4,FALSE)),\"\")","v":""},{"$f":"IFERROR(UPPER(VLOOKUP($C16,'Codici ed effetti'!$C$4:$G$40,5,FALSE)),\"\")","v":""},"","",null,null,null,0]
[null,{"$f":"IFERROR(VLOOKUP(C17, 'Codici ed effetti'!$C$4:$D$40, 2, FALSE), \"\")","v":""},null,null,null,{"$f":"IFERROR(UPPER(VLOOKUP($C17,'Codici ed effetti'!$C$4:$G$40,3,FALSE)),\"\")","v":""},{"$f":"IFERROR(UPPER(VLOOKUP($C17,'Codici ed effetti'!$C$4:$G$40,4,FALSE)),\"\")","v":""},{"$f":"IFERROR(UPPER(VLOOKUP($C17,'Codici ed effetti'!$C$4:$G$40,5,FALSE)),\"\")","v":""},"","",null,null,null,0]
[null,{"$f":"IFERROR(VLOOKUP(C18, 'Codici ed effetti'!$C$4:$D$40, 2, FALSE), \"\")","v":""},null,null,null,{"$f":"IFERROR(UPPER(VLOOKUP($C18,'Codici ed effetti'!$C$4:$G$40,3,FALSE)),\"\")","v":""},{"$f":"IFERROR(UPPER(VLOOKUP($C18,'Codici ed effetti'!$C$4:$G$40,4,FALSE)),\"\")","v":""},{"$f":"IFERROR(UPPER(VLOOKUP($C18,'Codici ed effetti'!$C$4:$G$40,5,FALSE)),\"\")","v":""},"","",null,null,null,0]
[null,{"$f":"IFERROR(VLOOKUP(C19, 'Codici ed effetti'!$C$4:$D$40, 2, FALSE), \"\")","v":""},null,null,null,{"$f":"IFERROR(UPPER(VLOOKUP($C19,'Codici ed effetti'!$C$4:$G$40,3,FALSE)),\"\")","v":""},{"$f":"IFERROR(UPPER(VLOOKUP($C19,'Codici ed effetti'!$C$4:$G$40,4,FALSE)),\"\")","v":""},{"$f":"IFERROR(UPPER(VLOOKUP($C19,'Codici ed effetti'!$C$4:$G$40,5,FALSE)),\"\")","v":""},"","",null,null,null,{"$f":"SUM(K19:M19)","v":0}]
[null,{"$f":"IFERROR(VLOOKUP(C20, 'Codici ed effetti'!$C$4:$D$40, 2, FALSE), \"\")","v":""},null,null,null,{"$f":"IFERROR(UPPER(VLOOKUP($C20,'Codici ed effetti'!$C$4:$G$40,3,FALSE)),\"\")","v":""},{"$f":"IFERROR(UPPER(VLOOKUP($C20,'Codici ed effetti'!$C$4:$G$40,4,FALSE)),\"\")","v":""},{"$f":"IFERROR(UPPER(VLOOKUP($C20,'Codici ed effetti'!$C$4:$G$40,5,FALSE)),\"\")","v":""},"","",null,null,null,{"$f":"SUM(K20:M20)","v":0}]
[null,{"$f":"IFERROR(VLOOKUP(C21, 'Codici ed effetti'!$C$4:$D$40, 2, FALSE), \"\")","v":""},null,null,null,{"$f":"IFERROR(UPPER(VLOOKUP($C21,'Codici ed effetti'!$C$4:$G$40,3,FALSE)),\"\")","v":""},{"$f":"IFERROR(UPPER(VLOOKUP($C21,'Codici ed effetti'!$C$4:$G$40,4,FALSE)),\"\")","v":""},{"$f":"IFERROR(UPPER(VLOOKUP($C21,'Codici ed effetti'!$C$4:$G$40,5,FALSE)),\"\")","v":""},"","",null,null,null,{"$f":"SUM(K21:M21)","v":0}]

{"sheet":"Particolari delle azioni","index":9,"n_rows":23,"n_cols":2,"rows_kept":23,"cut":false,"hidden":false,"merged":[[27,0,27,1],[0,0,0,1],[6,0,6,1],[11,0,11,1],[20,0,20,1],[16,0,16,1]]}
["1 - Introduzione di uno o più sistemi integrati e connessi di ICT: gestione tecnico-economica, efficientamento energetico, sostenibilità ambientale"]
["ICT","Sistema di ICT gestione economico-aziendale; efficientamento energetico, sostenibilità ambientale "]
["ICT per la gestione tecnico-economica\nSpecificare tempi e modalità di implementazione, valore aggiunto apportato al sistema di gestione tecnico-economico dell’azienda"]
["ICT per l’efficientamento energetico\nSpecificare tempi e modalità di implementazione, miglioramento energetico aziendale in relazione ai propri consumi"]
["ICT per la sostenibilità ambientale\nSpecificare tempi e modalità di implementazione, descrivere i fattori tangibili di miglioramento della sostenibilità ambientale dell’azienda"]
[]
["2 - Adesione a un sistema di certificazione"]
["Anno di azione"]
["Sistema di Certificazione "]
["Tempi e modalità di implementazione"]
[]
["3 - Diversificazione in attività extra-agricola "]
["Anno di diversificazione"]
["Ambito di diversificazione"]
["Modalità di svolgimento dell’Extra-agricola"]
[]
["4 - Introduzione della fase di trasformazione "]
["Anno di introduzione della fase di trasformazione"]
["Modalità di svolgimento della fase di trasformazione"]
[]
["5 - Introduzione della fase di commercializzazione "]
["Anno di introduzione della fase di commercializzazione"]
["Modalità di svolgimento della fase di Commercializzazione"]

{"sheet":"Riepilogo","index":10,"n_rows":54,"n_cols":7,"rows_kept":54,"cut":false,"hidden":false,"merged":[[44,3,44,6],[53,3,53,5],[51,4,51,6],[50,4,50,6],[49,4,49,6],[48,4,48,6],[47,4,47,6],[46,4,46,6],[45,4,45,6],[44,0,44,2],[45,1,45,2],[31,0,31,6],[37,0,37,3],[36,0,36,3],[35,0,35,3],[34,0,34,3],[33,0,33,3],[32,0,32,3],[41,0,41,3],[40,0,40,3],[39,0,39,3],[38,0,38,3],[32,4,32,6],[33,4,33,6],[34,4,34,6],[39,4,39,6],[40,4,40,6],[41,4,41,6],[36,4,36,6],[35,4,35,6],[38,4,38,6],[10,4,10,6],[11,4,11,6],[13,0,13,6],[23,0,23,6],[29,0,29,2],[26,0,26,2],[27,0,27,2],[11,1,11,3],[10,1,10,3],[28,0,28,2],[24,0,24,4],[1,1,1,3],[1,4,1,6],[0,0,0,6],[9,1,9,3],[9,4,9,6]]}
["Unità impiegate nelle attività agricole al mese 36 (inserire il numero di giornate impiegate)"]
[null,{"$f":"tappa0","v":"Ex-ante"},null,null,{"$f":"tappa3","v":"00/00/00"}]
[null,"Totale manodopera","Manodopera familiare","Manodopera extra-familiare","Totale manodopera","Manodopera familiare","Manodopera extra-familiare"]
["a) Coltivazione",{"$f":"Coltiv!$D6","v":0},null,null,{"$f":"Coltiv!$D9","v":0}]
["b) Allevamento",{"$f":"Allev!$E4","v":0},null,null,{"$f":"Allev!$E7","v":0}]
["c) Trasformazione",{"$f":"Coltiv!$I6+Allev!$K4","v":0},null,null,{"$f":"Coltiv!$I9+Allev!$K7","v":0}]
["d) Commercializzazione",{"$f":"Coltiv!$L6+Allev!$N4","v":0},null,null,{"$f":"Coltiv!$L9+Allev!$N7","v":0}]
["e) Attività extra-agricola",{"$f":"Coltiv!$O6+Allev!$Q4","v":0},null,null,{"$f":"Coltiv!$O9+Allev!$Q7","v":0}]
["f) Attività amministrativa / gestionale dell’azienda (inserire valore aziendale)",{"$f":"Coltiv!$Q6+Allev!$S4","v":0},null,null,{"$f":"Coltiv!$Q9+Allev!$S7","v":0}]
["g) Totale giornate",{"$f":"SUM(B4:B9)","v":0},null,null,{"$f":"SUM(E4:E9)","v":0}]
["h) Totale ULA",{"$f":"B10/215","v":0},null,null,{"$f":"E10/215","v":0}]
["i) Incremento ULA",null,null,null,{"$f":"E11-B11","v":0}]
[]
["Dimensione economica dell’impresa espressa in termini di Produzione standard aziendale"]
[null,{"$f":"tappa0","v":"Ex-ante"},{"$f":"tappa1","v":"00/00/00"},{"$f":"tappa2","v":"00/00/00"},{"$f":"tappa3","v":"00/00/00"}]
["a) Coltivazione",{"$f":"Coltiv!$F6","v":0},{"$f":"Coltiv!$F7","v":0},{"$f":"Coltiv!$F8","v":0},{"$f":"Coltiv!$F9","v":0}]
["b) Allevamento",{"$f":"Allev!$H4","v":0},{"$f":"Allev!$H5","v":0},{"$f":"Allev!$H6","v":0},{"$f":"Allev!$H7","v":0}]
["c) Trasformazione",{"$f":"Coltiv!$H6+Allev!$J4","v":0},{"$f":"Coltiv!$H7+Allev!$J5","v":0},{"$f":"Coltiv!$H8+Allev!$J6","v":0},{"$f":"Coltiv!$H9+Allev!$J7","v":0}]
["d) Commercializzazione",{"$f":"Coltiv!$K6+Allev!$M4","v":0},{"$f":"Coltiv!$K7+Allev!$M5","v":0},{"$f":"Coltiv!$K8+Allev!$M6","v":0},{"$f":"Coltiv!$K9+Allev!$M7","v":0}]
["e) Attività extra-agricola",{"$f":"Coltiv!$N6+Allev!$P4","v":0},{"$f":"Coltiv!$N7+Allev!$P5","v":0},{"$f":"Coltiv!$N8+Allev!$P6","v":0},{"$f":"Coltiv!$N9+Allev!$P7","v":0}]
["f) Tot produzione standard (Sommatoria a)-e))",{"$f":"SUM(B16:B20)","v":0},{"$f":"SUM(C16:C20)","v":0},{"$f":"SUM(D16:D20)","v":0},{"$f":"SUM(E16:E20)","v":0}]
["g) Incremento PS",null,null,null,{"$f":"IFERROR((E21-B21)/B21,0)","v":0}]
[]
["Sostenibilità economica dell’azienda "]
["Conto Economico\nSOSTENIBILITÀ ECONOMICA DELL’INVESTIMENTO"]
[null,null,null,{"$f":"tappa0","v":"Ex-ante"},{"$f":"tappa3","v":"00/00/00"}]
["Totale valore di produzione",null,null,{"$f":"B21","v":0},{"$f":"E21","v":0}]
["Totale costi medi variabili",null,null,{"$f":"Coltiv!E6+Allev!G4+Trasf!G4+Commerc!E4+'Extra-Agricolo'!E4","v":0},{"$f":"Coltiv!E9+Allev!G7+Trasf!G7+Commerc!E7+'Extra-Agricolo'!E7","v":0}]
["Reddito operativo",null,null,{"$f":"D27-D28","v":0},{"$f":"E27-E28","v":0}]
["Valore forfettario attuazione PSA (8%)",null,null,null,{"$f":"IF(E28*8%>12000,12000,E28*8%)","v":0}]
[]
["Riepilogo del PSA"]
["Ragione sociale o Denominazione sociale",null,null,null,{"$f":"IF('Informazioni generali'!B2<>\"\", 'Informazioni generali'!B2, \"\")","v":""}]
["CUAA",null,null,null,{"$f":"IF('Informazioni generali'!B5<>\"\", 'Informazioni generali'!B5, \"\")","v":""}]
["Codice ATECO",null,null,null,{"$f":"IF('Informazioni generali'!B7<>\"\", 'Informazioni generali'!B7, \"\")","v":""}]
["Incremento della PS",null,null,null,{"$f":"E22","v":0}]
["Incremento ULA",null,null,null,{"$f":"E12","v":0}]
["Obiettivo relativo alla Introduzione delle ICT ",null,null,null,{"$f":"IF('Particolari delle azioni'!B3=\"\",\"NO\",\"SI\")","v":"NO"},{"$f":"IF('Particolari delle azioni'!B4=\"\",\"NO\",\"SI\")","v":"NO"},{"$f":"IF('Particolari delle azioni'!B5=\"\",\"NO\",\"SI\")","v":"NO"}]
["Obiettivo relativo all'adesione a un sistema di Certificazione",null,null,null,{"$f":"IF('Particolari delle azioni'!B8=\"\",\"NO\",'Particolari delle azioni'!B8)","v":"NO"}]
["Obiettivo relativo alla Introduzione dell'attività di Trasformazione ",null,null,null,{"$f":"IF('Particolari delle azioni'!B18=\"\",\"NO\",'Particolari delle azioni'!B18)","v":"NO"}]
["Obiettivo relativo alla Introduzione dell'Attività di Commercializzazione ",null,null,null,{"$f":"IF('Particolari delle azioni'!B22=\"\",\"NO\",'Particolari delle azioni'!B22)","v":"NO"}]
["Obiettivo relativo alla Introduzione della Attività extra-agricola ",null,null,null,{"$f":"IF('Particolari delle azioni'!B13=\"\",\"NO\",'Particolari delle azioni'!B13)","v":"NO"}]
[]
[]
["Il dichiarante\n(soggetto richiedente)",null,null,"Il tecnico\n(soggetto compilatore)"]
["Nome e cognome",null,null,"Nome e cognome"]
[null,null,null,"PEC"]
[null,null,null,"Email PEO"]
[null,null,null,"Telefono"]
[null,null,null,"Albo professionale e numero iscrizione"]
[null,null,null,"Partita IVA"]
[null,null,null,"Sede legale"]
[]
["Firma",null,null,"Firma"]

{"sheet":"Elenchi","index":11,"n_rows":14,"n_cols":6,"rows_kept":14,"cut":false,"hidden":true,"merged":[]}
["Agriturismo",0.1,"Ex-ante","Società di persone","Società di capitali","Società cooperativa agricola a responsabilità limitata"]
["Fattorie didattiche/Fattorie sociali",0.1,{"$f":"'Informazioni generali'!B62","v":"00/00/00"},"Società semplice (S.s.)","Società per azioni (S.p.A.)","Società cooperativa agricola a responsabilità limitata (SCARL)"]
["Agricoltura sociale",0.1,{"$f":"'Informazioni generali'!B63","v":"00/00/00"},"Società in nome collettivo (S.n.c.)","Società a responsabilità limitata (S.r.l.)"]
["Acquacoltura",0.1,{"$f":"'Informazioni generali'!B64","v":"00/00/00"},"Società in accomandita semplice (S.a.s.)","Società semplificata a responsabilità limitata (S.s.r.l.)"]
["Turismo rurale e attività ricreative",0.05,null,null,"Società unipersonale a responsabilità limitata (s.r.l. unipersonale)"]
["Contoterzismo attivo ",0.05,null,null,"Società in accomandita per azioni (s.a.p.a.)"]
["Servizi ambientali",0.05]
["Attività sportive e ricreative",0.05]
["Agri-campeggio",0.05]
["Servizi per l’infanzia",0.05]
[]
[]
["SI"]
["NO"]

{"sheet":"Tabella_CREA","index":12,"n_rows":93,"n_cols":13,"rows_kept":93,"cut":false,"hidden":true,"merged":[]}
["FADN_REGION","NUTS2","Regione_P.A.","COD_PRODUCT","Rubrica_RICA","Descrizione_Rubrica","SOC_EUR","UM","GG_Ettaro"]
[292,"ITF1      ","Abruzzo","T0000T","G02","Agrumeti",6552,"EUR_per_ha",125]
[292,"ITF1      ","Abruzzo","ARA99T_ARA09S","D20","Altre colture per seminativi",1145,"EUR_per_ha",12]
[292,"ITF1      ","Abruzzo","PECR9_H9000T","G06","Altre colture permanenti",1860,"EUR_per_ha",18]
[292,"ITF1      ","Abruzzo","X0000T","G06","Altre colture permanenti - Alberi di Natale",1860,"EUR_per_ha",18]
[292,"ITF1      ","Abruzzo","I2900T","D33","Altre colture tessili",1152,"EUR_per_ha",12]
[292,"ITF1      ","Abruzzo","G9100T_G9900T","D18B","Altre foraggere avvicendate",444,"EUR_per_ha",18]
[292,"ITF1      ","Abruzzo","G2000T","D18D","Altre foraggere: Leguminose",467,"EUR_per_ha",18]
[292,"ITF1      ","Abruzzo","G3000T","D18C","Altre foraggere: Mais verde",1501,"EUR_per_ha",18]
[292,"ITF1      ","Abruzzo","I1190T","D30","Altre oleaginose erbacee",2015,"EUR_per_ha",15]
[292,"ITF1      ","Abruzzo","I6000T_I9000T","D35","Altre piante industriali",1600,"EUR_per_ha",20]
[292,"ITF1      ","Abruzzo","C1600T_C1700T_C1900T","D08","Altri cereali da granella (sorgo, miglio, panico, farro, ecc.)",1238,"EUR_per_ha",12]
[292,"ITF1      ","Abruzzo","C1400T","D05","Avena",518,"EUR_per_ha",12]
[292,"ITF1      ","Abruzzo","F3000T","G01D","Bacche (piccoli frutti)",10190,"EUR_per_ha",100]
[292,"ITF1      ","Abruzzo","R2000T","D11","Barbabietola da zucchero",1805,"EUR_per_ha",21]
[292,"ITF1      ","Abruzzo","I2200T","D32","Canapa",1169,"EUR_per_ha",12]
[292,"ITF1      ","Abruzzo","PECRS","G07","Colture permanenti in serra (Frutteti - di or.temp.)",26594,"EUR_per_ha",75]
[292,"ITF1      ","Abruzzo","I1110T","D26","Colza e ravizzone",335,"EUR_per_ha",15]
[292,"ITF1      ","Abruzzo","I1150_2300T","D25","Cotone",1400,"EUR_per_ha",12]
[292,"ITF1      ","Abruzzo","F1200T","G01F","Drupacee",11969,"EUR_per_ha",125]
[292,"ITF1      ","Abruzzo","N0000T","D16","Fiori e piante ornamentali - all'aperto",98670,"EUR_per_ha",1000]
[292,"ITF1      ","Abruzzo","N0000S","D17","Fiori e piante ornamentali - in serra",187154,"EUR_per_ha",1000]
[292,"ITF1      ","Abruzzo","C1120T","D02","Frumento duro",1312,"EUR_per_ha",12]
[292,"ITF1      ","Abruzzo","C1110T","D01","Frumento tenero e spelta",1012,"EUR_per_ha",12]
[292,"ITF1      ","Abruzzo","F2000T","G01B","Frutteti - di origine sub-tropicale",12435,"EUR_per_ha",100]
[292,"ITF1      ","Abruzzo","F1000T","G01A","Frutteti - di origine temperata",13602,"EUR_per_ha",40]
[292,"ITF1      ","Abruzzo","F4000T","G01C","Frutteti - frutta a guscio",2412,"EUR_per_ha",40]
[292,"ITF1      ","Abruzzo","U1000","I02","Funghi coltivati sotto copertura (100 mq) - 7,2 raccolti",38556,"EUR_per_100_m2",300]
[292,"ITF1      ","Abruzzo","I1120T","D27","Girasole",524,"EUR_per_ha",15]
[292,"ITF1      ","Abruzzo","P1000T","D09A","Leguminose da granella (piselli, fave e favette, lupini dolci)",1636,"EUR_per_ha",16]
[292,"ITF1      ","Abruzzo","I2100T","D31","Lino da fibra",1371,"EUR_per_ha",20]
[292,"ITF1      ","Abruzzo","I1140T","D29","Lino da olio",1803,"EUR_per_ha",20]
[292,"ITF1      ","Abruzzo","I4000T","D24","Luppolo",10175,"EUR_per_ha",40]
[292,"ITF1      ","Abruzzo","C1500T","D06","Mais",1530,"EUR_per_ha",20]
[292,"ITF1      ","Abruzzo","O1910T","G03B","Oliveti - per olive da olio (olio)",2488,"EUR_per_ha",90]
[292,"ITF1      ","Abruzzo","O1100T","G03A","Oliveti - per olive da tavola",1654,"EUR_per_ha",87]
[292,"ITF1      ","Abruzzo","K0000T_UAA09S","F04","Orti familiari",0,"EUR_per_ha",0]
[292,"ITF1      ","Abruzzo","V0000_S0000T","D14","Orticole - all'aperto ",21983,"EUR_per_ha",120]
[292,"ITF1      ","Abruzzo","V0000_S0000TK","D14B","Orticole - all'aperto - in orto industriale",22124,"EUR_per_ha",155]
[292,"ITF1      ","Abruzzo","V0000_S0000TO","D14A","Orticole - all'aperto - in pieno campo",21842,"EUR_per_ha",120]
[292,"ITF1      ","Abruzzo","V0000_S0000S","D15","Orticole - in serra",33138,"EUR_per_ha",1000]
[292,"ITF1      ","Abruzzo","C1300T","D04","Orzo",727,"EUR_per_ha",12]
[292,"ITF1      ","Abruzzo","J2000T","F02","Pascoli magri",135,"EUR_per_ha",5]
[292,"ITF1      ","Abruzzo","R1000T","D10","Patate (comprese le patate primaticce e da semina)",13257,"EUR_per_ha",60]
[292,"ITF1      ","Abruzzo","I5000T","D34","Piante aromatiche, medicinali e da condimento",31296,"EUR_per_ha",40]
[292,"ITF1      ","Abruzzo","G0000T","D18","Piante raccolte verdi",973,"EUR_per_ha",18]
[292,"ITF1      ","Abruzzo","R9000T","D12","Piante sarchiate foraggere",3808,"EUR_per_ha",18]
[292,"ITF1      ","Abruzzo","F1100T","G01E","Pomacee",18058,"EUR_per_ha",125]
[292,"ITF1      ","Abruzzo","G1000T","D18A","Prati avvicendati (medica, sulla, trifoglio, lupinella, ecc.)",721,"EUR_per_ha",18]
[null,null,null,null,null,"Prati e pascoli permanenti non in uso",0,"EUR_per_ha",0]
[292,"ITF1      ","Abruzzo","J1000T","F01","Prati permanenti e pascoli",344,"EUR_per_ha",18]
[292,"ITF1      ","Abruzzo","C2000T","D07","Riso",1172,"EUR_per_ha",20]
[292,"ITF1      ","Abruzzo","C1200T","D03","Segale",522,"EUR_per_ha",12]
[292,"ITF1      ","Abruzzo","E0000T","D19","Semi e piantine seminativi",5363,"EUR_per_ha",15]
[292,"ITF1      ","Abruzzo","I1130T","D28","Soia",995,"EUR_per_ha",15]
[292,"ITF1      ","Abruzzo","I3000T","D23","Tabacco",6370,"EUR_per_ha",180]
[null,null,null,null,null,"Tartufi",10190,"EUR_per_ha",100]
[292,"ITF1      ","Abruzzo","Q0000T","D21","Terreni a riposo o a set-aside senza aiuto",0,"EUR_per_ha",0]
[292,"ITF1      ","Abruzzo","W1200T","G04C","Vigneti - per uva da tavola",9921,"EUR_per_ha",120]
[292,"ITF1      ","Abruzzo","W1190T","G04B","Vigneti - per uva da vino comune",8300,"EUR_per_ha",75]
[292,"ITF1      ","Abruzzo","W1110T","G04A","Vigneti - per uva da vino di qualità DOP",11878,"EUR_per_ha",75]
[292,"ITF1      ","Abruzzo","W1120T","G04E","Vigneti - per uva da vino di qualità IGP",11878,"EUR_per_ha",75]
[292,"ITF1      ","Abruzzo","W1100T","G04F","Vigneti da vino",10624,"EUR_per_ha",75]
[292,"ITF1      ","Abruzzo","W1300T","G04D","Vigneti per uva passa",12250,"EUR_per_ha",120]
[292,"ITF1      ","Abruzzo","L0000T","G05","Vivai",45622,"EUR_per_ha",315]
[null,null,null,null,null,"Alpaca",68,"EUR_per_capo",5]
[292,"ITF1      ","Abruzzo","A2300G","J08","Altre vacche (vacche nutrici, vacche da riforma)",748,"EUR_per_capo",7]
[292,"ITF1      ","Abruzzo","A5240_5300","J16D","Altro pollame (faraone, ecc.)",11.1,"EUR_per_capo",6,null,null,1110,600]
[292,"ITF1      ","Abruzzo","A5210","J16B","Anatre",31.56,"EUR_per_capo",0.02,null,null,3156,2]
[292,"ITF1      ","Abruzzo","A6710R","J18","Api (alveare)",237,"EUR_per_alveare",5]
[292,"ITF1      ","Abruzzo","A2220","J04","Bovini femmine da 1 a meno di 2 anni",468,"EUR_per_capo",6]
[292,"ITF1      ","Abruzzo","A2120","J03","Bovini maschi da 1 a meno di 2 anni",598,"EUR_per_capo",7]
[292,"ITF1      ","Abruzzo","A2010","J02","Bovini maschi e femmine meno di 1 anno",1244,"EUR_per_capo",6]
[292,"ITF1      ","Abruzzo","A2130","J05","Bovini maschi di 2 anni e più",610,"EUR_per_capo",7]
[292,"ITF1      ","Abruzzo","A2410","J20","Bufale",1692,"EUR_per_capo",13]
[292,"ITF1      ","Abruzzo","A4210K","J10A","Capre",378,"EUR_per_capo",5]
[292,"ITF1      ","Abruzzo","A4220","J10B","Caprini - altri",68,"EUR_per_capo",5]
[292,"ITF1      ","Abruzzo","A6111","J17","Conigli - fattrici",71,"EUR_per_capo",2]
[292,"ITF1","Abruzzo","C_1","J01","Equini",598,"EUR_per_capo",5]
[292,"ITF1      ","Abruzzo","A5110O","J15","Galline ovaiole",30.58,"EUR_per_capo",0.03,null,null,3058,3]
[292,"ITF1      ","Abruzzo","A2230","J06","Giovenche di 2 anni e più anni",456,"EUR_per_capo",7]
[null,null,null,null,null,"Lumache",45000,"EUR_per_ha",200]
[292,"ITF1      ","Abruzzo","A5220","J16B","Oche",28.93,"EUR_per_capo",0.02,null,null,2893,2]
[292,"ITF1      ","Abruzzo","A4120","J09B","Ovini - altri (arieti e agnelli)",136,"EUR_per_capo",4]
[292,"ITF1      ","Abruzzo","A4110K","J09A","Pecore",349,"EUR_per_capo",4]
[292,"ITF1      ","Abruzzo","A5140","J14","Polli da carne (broilers)",20.68,"EUR_per_capo",0.03,null,null,2068,3]
[292,"ITF1      ","Abruzzo","A5410","J16C","Struzzi",525,"EUR_per_capo",6,null,null,52500,600]
[292,"ITF1      ","Abruzzo","A3130","J13","Suini - altri (verri e suini da ingrasso > 20 Kg)",827,"EUR_per_capo",6]
[292,"ITF1      ","Abruzzo","A3110","J11","Suini - lattonzoli < 20 Kg",446,"EUR_per_capo",7]
[292,"ITF1      ","Abruzzo","A3120","J12","Suini - scrofe da riproduzione > 50 Kg",1883,"EUR_per_capo",12]
[292,"ITF1      ","Abruzzo","A5230","J16A","Tacchini",54.2,"EUR_per_capo",0.02,null,null,5420,2]
[292,"ITF1      ","Abruzzo","A2300","J19","Vacche",1246,"EUR_per_capo",13]
[292,"ITF1      ","Abruzzo","A2300F","J07","Vacche da latte",1692,"EUR_per_capo",13]

{"sheet":"Codici ed effetti","index":13,"n_rows":41,"n_cols":7,"rows_kept":41,"cut":false,"hidden":true,"merged":[[0,0,0,6],[1,4,1,6],[1,0,1,3]]}
["TABELLA DI CORRISPONDENZA TRA TIPOLOGIA DI INVESTIMENTI ED EFFETTI"]
["Tipologia",null,null,null,"Effetti"]
["Categoria","Codice","Descrizione","Codice","A-Qualità dell'ambiente","B - Rendimento economico","C - Qualità delle produzioni"]
[1,1,"Acquisto terreni (°)",1,null,"X"]
[2,2,"Sistemazioni idraulico agrarie",2,"X","X"]
[2,3,"Drenaggi e opere di canalizzazione dell’acqua",3,"X","X","X"]
[2,4,"Impianti per la gestione efficiente dell'acqua di irrigazione",4,"X"]
[2,5,"Impianti e/o bacini per fitodepurazione",5,"X"]
[2,6,"Recinzioni",6,null,"X"]
[2,7,"Viabilità aziendale",7,null,"X"]
[2,8,"Spianamenti, terrazzamenti e simili",8,null,"X"]
[2,9,"Strutture per la gestione dei pascoli e prati-pascoli",9,"X","X"]
[2,10,"Impianti di colture arboree e arbustive pluriennali frutticole, floricole e officinali e miglioramento di quelle esistenti",10,null,"X","X"]
[2,11,"Impianti di colture arboree come fasce tampone  (frangivento, frangisole)",11,"X"]
[3,12,"Impianti per la produzione di energia da fonti rinnovabili per autoconsumo",12,"X","X"]
[4,13,"Costruzione, ristrutturazione, ampliamento e ammodernamento dei fabbricati per produzioni vegetali",13,null,"X","X"]
[4,14,"Costruzione, ristrutturazione, ampliamento e ammodernamento dei fabbricati per produzioni zootecniche",14,null,"X","X"]
[4,15,"Costruzione, ristrutturazione, ampliamento e ammodernamento dei fabbricati per trasformazione e/o commercializzazione dei prodotti agricoli (all. I Trattato)",15,null,"X","X"]
[4,16,"Strutture di stoccaggio finalizzate anche al miglioramento della qualità del prodotto",16,"X","X"]
[4,17,"Impianti per lo stoccaggio, il trattamento e utilizzo agronomico delle acque di vegetazione, delle acque reflue e di lavorazione e degli affluenti zootecnici",17,"X","X"]
[4,18,"Miglioramento dell'efficienza energetica di impianti e immobili produttivi",18,"X","X"]
[5,19,"Investimenti per l'adeguamento ai requisiti resi obbligatori da specifiche norme comunitarie di nuove introduzione",19,null,null,"X"]
[6,20,"Macchine, impianti e attrezzature per operazioni colturali",20,null,"X","X"]
[6,21,"Macchine, impianti e attrezzature per la gestione degli allevamenti",21,null,"X","X"]
[6,22,"Macchine, impianti e attrezzature per servizi aziendali diversi (es. sicurezza lavoratori)",22,null,"X","X"]
[6,23,"Macchine, impianti e attrezzature per il prelievo e la distribuzione dell'acqua (esclusi quelli previsti dall'art. 46 del Reg. CE 1305/2013)",23,"X","X"]
[6,24,"Macchine, impianti e attrezzature per l'agricoltura conservativa (agricoltura blu)",24,"X"]
[6,25,"Macchine, impianti e attrezzature per l'agricoltura 4.0",25,"X","X","X"]
[6,26,"Investimenti volti a proteggere le coltivazioni dagli effetti negativi degli eventi meteorici estremi",26,null,"X","X"]
[6,27,"Acquisto di tecnologie ed attrezzature  ICT ( sistemi integrati e connessi riconducibili ad Agricoltura 4.0, ivi inclusa la zootecnia 4.0)",27,"X","X"]
[7,28,"Acquisizione di licenze e/o sviluppo di programmi informatici (software)",28,"X","X"]
[7,29,"Acquisizione di brevetti, licenze, diritti d'autore, marchi commerciali",29,null,"X"]
[8,30,"Spese generali collegate agli investimenti ammessi per l'intervento cofinanziato (consulenze, onorari, studi fattibilità)",30,"X","X","X"]
[9,31,"Realizzazione di impianti di colture arboree micronizzate",31,null,"X","X"]
[9,32,"Acquisto di riproduttori di specie animali iscritte ai libri genealogici",32,null,null,"X"]
[9,33,"Acquisto di animali da ingrasso",33,null,"X"]
[9,34,"Manutenzione ordinaria e straordinaria degli immobili, degli impianti e delle attrezzature",34,"X","X","X"]
[9,35,"Partecipazione a corsi di formazione professionale",35,"X","X","X"]
[9,36,"Partecipazione a corsi di consulenza aziendale ",36,null,"X"]
[9,37,"Spese per progettazione, studi e analisi ai fini dell'attuazione del PSA",37]
[9,38,"Altre tipologie di spese non ricomprese nelle voci precedenti",38]

{"sheet":"Categoria investimenti","index":14,"n_rows":10,"n_cols":2,"rows_kept":10,"cut":false,"hidden":true,"merged":[]}
["Codice","Categoria degli investimenti"]
[1,"Terreni"]
[2,"Miglioramenti fondiari"]
[3,"Impianti produzione energia"]
[4,"Beni Immobili produttivi"]
[5,"Investimenti per nuove norme comunitarie"]
[6,"Macchine, Impianti e attrezzature"]
[7,"Investimenti Immateriali"]
[8,"Spese generali"]
[9,"Altre tipologie di attività per lo sviluppo del PSA"]